{"text_format":"1","workbook":"xlsx","n_sheets":3,"sheets":["svod","ConNar","Массив НАР"],"not_rendered":{"charts":0,"images":0,"macros":1,"external_links":3,"defined_names":26,"comments":0,"pivot_tables":0},"unopened":[],"bounds":{"document_bytes":16777216,"sheet_cells":100000,"rows_first":2000,"rows_last":500,"rows_between":2000,"halvings":0,"cell_chars":16384,"cell_head_chars":4096},"cells_cut":0,"cells_raw":0,"read":"whole","date_system":"1900"}

{"sheet":"svod","index":0,"n_rows":3,"n_cols":21,"rows_kept":3,"cut":false,"hidden":false,"merged":[]}
["РУТН","ДЗО","Филиал/МЭС","ПО/ПМЭС","ФО","№ Предписания","Дата","№ п/п","Нарушения","Ссылка","Осн","Доп","Класс","Устр","ФИО","А/Б/В","Ошибка","Примечание",null,"КОНТРОЛЬ пустых ячеек в столбцах \nA-G",{"$f":"COUNTBLANK(Нарушения[[РУТН]:[Дата]])","v":0}]
["РУТН Волги","ПАО \"МРСК Волги\"","Саратовские РС","Правобережное ПО","ПФО","АП-Вг-279/16-РР","2016-10-07",1,"Не приложены к АРТН (№ 144 от 24.09.2016 г.)  все необходимые документы (фотографии с места повреждения и схемы повреждений), подтверждающие выводы комиссии.","ОРД 2\nп.4.7.6\n",16,"С",null,null,"Бабиков С.Г.",{"$f":"IF(Нарушения[[#This Row],[Класс]]=\"а\",\"А\",\"\")&IF(Нарушения[[#This Row],[Класс]]=\"б\",\"Б\",\"\")&IF(AND(ISBLANK(Нарушения[[#This Row],[Класс]]),Нарушения[[#This Row],[Осн]]>0),\"В\",\"\")","v":"В"}]
["РУТН Северного Кавказа","ПАО \"МРСК Северного Кавказа\"","Саратовские РС","Правобережное ПО","ПФО","АП-Вг-279/16-РР","2016-10-08",2,"Не приложены к АРТН (№ 144 от 24.09.2016 г.)  все необходимые документы (фотографии с места повреждения и схемы повреждений), подтверждающие выводы комиссии.","ОРД 2\nп.4.7.6\n",17,"Т",null,null,"Бабиков С.Г.",{"$f":"IF(Нарушения[[#This Row],[Класс]]=\"а\",\"А\",\"\")&IF(Нарушения[[#This Row],[Класс]]=\"б\",\"Б\",\"\")&IF(AND(ISBLANK(Нарушения[[#This Row],[Класс]]),Нарушения[[#This Row],[Осн]]>0),\"В\",\"\")","v":"В"}]

{"sheet":"ConNar","index":1,"n_rows":8,"n_cols":15,"rows_kept":8,"cut":false,"hidden":false,"merged":[]}
[null,null,null,null,null,"счетчики ошибок",null,null,"в буфере именно предписание",{"$f":"IF(SUM(A6:I6)=8,1,0)","v":0},"\"1\" - ок, \"0\" - не то"]
[2,null,null,null,null,"пустой буфер",{"$f":"error_nar_1","v":2},null,"в буфере нарушения",{"$f":"O6","v":0},"\"1\" - ок, \"0\" - не то"]
[null,null,null,null,null,"некорректный буфер",{"$f":"error_nar_2","v":0},null,"корректность буфера",{"$f":"IF(SUM(J1:J2)=2,1,0)","v":0},"\"1\" - ок, \"0\" - не то"]
[null,null,null,null,null,"дубликат",{"$f":"error_nar_3","v":0},{"$f":"IFERROR(VLOOKUP(F9,Нарушения[№ Предписания],1,0),0)","v":0},"наличие в базе",{"$f":"IF(H4>0,0,1)","v":1},"\"1\" - ок, \"0\" - уже есть"]
[null,null,null,null,null,null,null,null,"разрешение на вставку",{"$f":"IF(SUM(J1:J4)=4,1,0)","v":0},"\"1\" - ок, \"0\" - не вставлять"]
[{"$f":"IF(COUNTA(пров_нар[РУТН])>0,1,0)","v":0},{"$f":"IF(COUNTA(пров_нар[ДЗО])>0,1,0)","v":0},{"$f":"IF(COUNTA(пров_нар[Филиал/МЭС])>0,1,0)","v":0},{"$f":"IF(COUNTA(пров_нар[ПО/ПМЭС])>0,1,0)","v":0},{"$f":"IF(COUNTA(пров_нар[ФО])>0,1,0)","v":0},{"$f":"IF(COUNTA(пров_нар[№ Предписания])>0,1,0)","v":0},{"$f":"IF(COUNTA(пров_нар[Дата])>0,1,0)","v":0},null,{"$f":"IF(COUNTA(пров_нар[Нарушения])>0,1,0)","v":0},null,null,null,null,null,{"$f":"IF(COUNTA(пров_нар[ФИО])>0,1,0)","v":0}]
[]
["РУТН","ДЗО","Филиал/МЭС","ПО/ПМЭС","ФО","№ Предписания","Дата","№ п/п","Нарушения","Ссылка","Осн","Доп","Класс","Устр","ФИО"]

{"sheet":"Массив НАР","index":2,"n_rows":350,"n_cols":15,"rows_kept":350,"cut":false,"hidden":false,"merged":[]}
[13,13,13,13,4,13,8,3,60,16,4,4,4,4,13]
["РУТН","ДЗО","Филиал/МЭС","ПО/ПМЭС","ФО","№ Предписания","Дата","№ п/п","Нарушения","Ссылка","Осн","Доп","Класс","Устр","ФИО"]
["РУТН Западной Сибири","АО \"Тюменьэнерго\"","Тюменские РС","Южное ТПО","УФО","АП-ЗС-049/16-КП","2016-10-28","","ТОиР"]
["РУТН Западной Сибири","АО \"Тюменьэнерго\"","Тюменские РС","Южное ТПО","УФО","АП-ЗС-049/16-КП","2016-10-28","","Общие замечания"]
["РУТН Западной Сибири","АО \"Тюменьэнерго\"","Тюменские РС","Южное ТПО","УФО","АП-ЗС-049/16-КП","2016-10-28",1,"Название инструкции не соответствует его содержанию (в инструкции по эксплуатации маслонаполненных вводов на напряжение 110 кВ (ПИ 89416437.10-002-2014) на ПС филиала АО \"Тюменьэнерго\" Тюменские распределительные сети Южное ТПО  внесены сведения по эксплуатации как маслонаполненных так и твердых, негерметичных  и вводов с RIP- изоляцией) ","ПТЭ, п.п.1.2.6, 1.7.5,1.7.6",1,"С",null,null,"Ермеев Р.З."]
["РУТН Западной Сибири","АО \"Тюменьэнерго\"","Тюменские РС","Южное ТПО","УФО","АП-ЗС-049/16-КП","2016-10-28",2,"Отсутствует график ТО кабельных линий 0.4 кВ ТСН ПС","Периодичность проведения ТО и ремонтов оборудования ПС в филиале АО \"Тюменьэнерго\"- ТРС от 17.12.2015 года, п.52",1,"С",null,null,"Ковтун А.Ю."]
["РУТН Западной Сибири","АО \"Тюменьэнерго\"","Тюменские РС","Южное ТПО","УФО","АП-ЗС-049/16-КП","2016-10-28",3,"Отсутствует технологическая карта на ТО кабельных линий 0.4 кВ ТСН ПС","СО 34.04.181-2003,           п. 5.1.11",1,"С",null,null,"Ермеев Р.З."]
["РУТН Западной Сибири","АО \"Тюменьэнерго\"","Тюменские РС","Южное ТПО","УФО","АП-ЗС-049/16-КП","2016-10-28",4,"Отсутствует приказ по филиалу о назначении лица (из числа заместителей руководителя) за общую организацию размещения, установки, содержания, использования и эксплуатации мобильных зданий и лиц, из числа инженерно-технических работников, ответственных за безопасную эксплуатацию мобильных зданий ","РД 34.03.219,\nп.п.1.4,1.5",7,null,null,null,"Пономарев П.П."]
["РУТН Западной Сибири","АО \"Тюменьэнерго\"","Тюменские РС","Южное ТПО","УФО","АП-ЗС-049/16-КП","2016-10-28",5,"Отсутствует маркировка охранных зон ПС (путём установки за счет сетевых организаций предупреждающих знаков, содержащих указание на размер охранной зоны)","Правила установления охранных зон объектов электросетевого хозяйства и особых условий использования земельных участков, расположенных в границах таких зон,\nп.7",7,null,null,null,"Пономарев П.П."]
["РУТН Западной Сибири","АО \"Тюменьэнерго\"","Тюменские РС","Южное ТПО","УФО","АП-ЗС-049/16-КП","2016-10-28","","Омутинский РЭС"]
["РУТН Западной Сибири","АО \"Тюменьэнерго\"","Тюменские РС","Южное ТПО","УФО","АП-ЗС-049/16-КП","2016-10-28",6,"В Омутинском РЭС не указываются в актах технического обслуживания и ремонта оборудования тип применяемых измерительных приборов, погрешность измерений, даты их очередной поверки","ПТЭ,\nп.п.1.9.12, 1.9.14.,\nГОСТ ИСО/МЭК 17025-2009,\nп.п. 5.10.2, 5.10.3",1,"С",null,"+","Ермеев Р.З."]
["РУТН Западной Сибири","АО \"Тюменьэнерго\"","Тюменские РС","Южное ТПО","УФО","АП-ЗС-049/16-КП","2016-10-28",7,"На ПС 110 кВ \"Вагай\" соединение гибкой ошиновки ВЛ-110 кВ Омутинка с ВЧЗ и далее с ЛР-110 кВ Омутинка ф. \"А\", \"В\", \"С\" выполнены болтовыми соединениями","ПУЭ, п.4.2.46",1,null,null,null,"Ковтун А.Ю."]
["РУТН Западной Сибири","АО \"Тюменьэнерго\"","Тюменские РС","Южное ТПО","УФО","АП-ЗС-049/16-КП","2016-10-28",8,"На ПС 110 кВ \"Вагай\" соединение гибкой ошиновки ВЛ 110 кВ Заводоуковск с ВЧЗ и далее с ЛР-110 кВ Омутинка ф. \"А\", \"В\", \"С\" выполнены болтовыми соединениями","ПУЭ, п.4.2.46",1,null,null,null,"Ермеев Р.З."]
["РУТН Западной Сибири","АО \"Тюменьэнерго\"","Тюменские РС","Южное ТПО","УФО","АП-ЗС-049/16-КП","2016-10-28",9,"На ПС 110 кВ \"Вагай\" не выполнено заземление металлических кабельных коробов и их крышек на территории ОРУ","ПТЭ,\nп.5.10.1",1,null,null,null,"Ермеев Р.З."]
["РУТН Западной Сибири","АО \"Тюменьэнерго\"","Тюменские РС","Южное ТПО","УФО","АП-ЗС-049/16-КП","2016-10-28",10,"На ПС 110 кВ \"Вагай\" не в полном объеме выполнена смазка трущихся узлов и деталей в шкафу привода переключающего устройства РПН 2Т незамерзающей смазкой ЦИАТИМ-201 или ГОИ-54 при текущем ремонте в 2015 году (смазка на шестернях и кулисе отсутствует)","РД 34.46.501-78, п.6.16",1,null,null,"+","Ермеев Р.З."]
["РУТН Западной Сибири","АО \"Тюменьэнерго\"","Тюменские РС","Южное ТПО","УФО","АП-ЗС-049/16-КП","2016-10-28",11,"На ПС 110 кВ \"Вагай\" просачивается масло из под нижнего фланца ТСФ 2Т ","ПТЭ, п.5.3.1.,  ВППБ 27-14, п.5.2.13",12,null,null,"+","Ермеев Р.З."]
["РУТН Западной Сибири","АО \"Тюменьэнерго\"","Тюменские РС","Южное ТПО","УФО","АП-ЗС-049/16-КП","2016-10-28",12,"На ПС 110 кВ \"Вагай\" аварийный выход из КРУН-10 кВ закрыт на замок с внутренней стороны","Правила противопожарного режима в РФ, \nп. 35.,\nСТО 34.01-27.1-001-2014 (ВППБ 27-14) , \nп. 5.1.28",12,"ОРД","А","+","Ермеев Р.З."]
["РУТН Западной Сибири","АО \"Тюменьэнерго\"","Тюменские РС","Южное ТПО","УФО","АП-ЗС-049/16-КП","2016-10-28",13,"На ПС 110 кВ \"Вагай\" не опломбированы в предельно открытом положении вентили герметичных высоковольтных вводов 110 кВ 1Т, 2Т фаза \"А\", \"В, \"С\"","СО 153-34.46.503,              п. 5.6.2",1,null,null,"+","Ермеев Р.З."]
["РУТН Западной Сибири","АО \"Тюменьэнерго\"","Тюменские РС","Южное ТПО","УФО","АП-ЗС-049/16-КП","2016-10-28",14,"На ПС 110 кВ \"Вагай\" горловина выхлопной трубы 1Т направлена на пути прохода персонала (отсутствует отбойный щиток на горловине выхлопной трубы)","СО 153-34.46.501,\nп. 1.10.,\nВППБ 27-14, \nп. 5.2.10",12,"Пож",null,null,"Ковтун А.Ю."]
["РУТН Западной Сибири","АО \"Тюменьэнерго\"","Тюменские РС","Южное ТПО","УФО","АП-ЗС-049/16-КП","2016-10-28",15,"На ПС 110 кВ \"Вагай\" загрязнены подвесные изоляторы ВЧЗ-110 кВ Заводоуковск ф. \"А\", \"В\"","СО 34.20.504-94, п. 3.2.4",1,null,null,null,"Ермеев Р.З."]
["РУТН Западной Сибири","АО \"Тюменьэнерго\"","Тюменские РС","Южное ТПО","УФО","АП-ЗС-049/16-КП","2016-10-28",16,"На ПС 110 кВ \"Вагай\" просачивается масло из под сливного крана 1Т","ПТЭ, п.5.3.1.,  ВППБ 27-14, п.5.2.13",12,null,null,null,"Ермеев Р.З."]
["РУТН Западной Сибири","АО \"Тюменьэнерго\"","Тюменские РС","Южное ТПО","УФО","АП-ЗС-049/16-КП","2016-10-28",17,"На ПС 110 кВ \"Вагай\" просачивается масло из радиатора охлаждения 1Т со стороны ВН","ПТЭ, п.5.3.1.,  ВППБ 27-14, п.5.2.13",12,null,null,null,"Ермеев Р.З."]
["РУТН Западной Сибири","АО \"Тюменьэнерго\"","Тюменские РС","Южное ТПО","УФО","АП-ЗС-049/16-КП","2016-10-28",18,"На ПС 110 кВ \"Омутинка\" бак В-110 кВ \"Заводоуковск\" имеет наклон в строну СШ-110 кВ","ОБП.463.000 Выключатель масляный баковый МКП-110М. Техническое описание и инструкция по эксплуатации, монтаж п.1",1,null,null,"+","Ермеев Р.З."]
["РУТН Западной Сибири","АО \"Тюменьэнерго\"","Тюменские РС","Южное ТПО","УФО","АП-ЗС-049/16-КП","2016-10-28",19,"На ПС 110 кВ \"Омутинка\" не выполнены мероприятия по повышению надежности ТН серии (НКФ-110-57) для 1ТН-110 кВ:\n- проверка состояния уплотнений кольцевой прокладки в месте крепления разборного вывода А обмотки ВН с крышкой маслорасширителя (надежность герметизации этого узла);\n- замена заводской прокладки между фланцами патрубка воздухоосушителя и крышкой маслоуказателя; прокладки выполнить из маслостойкой резины толщиной 6-8 мм в соответствии с размерами фланца патрубка воздухоосушителя","СРМ-2000, \nч.2,\nр. 9.10",1,"ОРД",null,"+","Ермеев Р.З."]
["РУТН Западной Сибири","АО \"Тюменьэнерго\"","Тюменские РС","Южное ТПО","УФО","АП-ЗС-049/16-КП","2016-10-28",20,"На ПС 110 кВ \"Омутинка\" не обеспечена замена масла в гидрозатворах негерметичных вводах 110 кВ периодичностью раз в четыре года (в паспортах сведения отсутствуют):\n- СВ-110 кВ ф. «А», «В», «С»;\n- во вводе 110кВ 1Т ЗОН-110 кВ.\n","СО 153- 34.46.503 \n(РД 34.46.503) \n«Типовая инструкция по эксплуатации маслонаполненных вводов на напряжение 110-750 кВ»,\nп.5.5.2",1,null,null,"+","Ермеев Р.З."]
["РУТН Западной Сибири","АО \"Тюменьэнерго\"","Тюменские РС","Южное ТПО","УФО","АП-ЗС-049/16-КП","2016-10-28",21,"На ПС 110 кВ \"Омутинка\" не выполнено заземление цоколей трансформаторов напряжения 1ТН-110 фаз «А», «В», «С» к штатным болтам","ИТЛУ.671244.002.ТО,\nп.5.6",1,null,null,"+","Ермеев Р.З."]
["РУТН Западной Сибири","АО \"Тюменьэнерго\"","Тюменские РС","Южное ТПО","УФО","АП-ЗС-049/16-КП","2016-10-28",22,"На ПС 110 кВ \"Омутинка\" Отсутствует надпись \"Включено\" и \"Отключено\" на ключе управления ШОН-110 кВ \"Кошевая\"","ПТЭ, п.5.4.27",1,null,null,"+","Ермеев Р.З."]
["РУТН Западной Сибири","АО \"Тюменьэнерго\"","Тюменские РС","Южное ТПО","УФО","АП-ЗС-049/16-КП","2016-10-28",23,"На ПС 110 кВ \"Омутинка\" загрязнены подвесные изоляторы на приемном портале ВЛ-110 кВ \"Кошевая\" ф. \"А\", \"В\"","СО 34.20.504-94, п.3.2.4",1,null,null,null,"Ермеев Р.З."]
["РУТН Западной Сибири","АО \"Тюменьэнерго\"","Тюменские РС","Южное ТПО","УФО","АП-ЗС-049/16-КП","2016-10-28",24,"На ПС 110 кВ \"Омутинка\" не выполнено заземление цоколей трансформаторов тока ТТ-110 2Т , ТТ-110 1Т фаз «А», «В», «С» к штатным болтам","ВЛИЭ.670105.001 РЭ, п.2.1.3",1,null,null,"+","Ермеев Р.З."]
["РУТН Западной Сибири","АО \"Тюменьэнерго\"","Тюменские РС","Южное ТПО","УФО","АП-ЗС-049/16-КП","2016-10-28",25,"ПС 110 кВ \"Омутинка\" увлажнен силикагель в ВОФ 2ТН-110 кВ  ф. \"А\", \"С\"","ВЛИЭ. 671243.003 РЭ,  п.3.1.2",1,null,null,"+","Ермеев Р.З."]
["РУТН Западной Сибири","АО \"Тюменьэнерго\"","Тюменские РС","Южное ТПО","УФО","АП-ЗС-049/16-КП","2016-10-28",26,"ПС 110 кВ \"Омутинка\" просачивается масло из сливного крана 2ТСН","ВППБ 27-14, п.5.2.13",12,null,null,"+","Ермеев Р.З."]
["РУТН Западной Сибири","АО \"Тюменьэнерго\"","Тюменские РС","Южное ТПО","УФО","АП-ЗС-049/16-КП","2016-10-28",27,"На ПС 110 кВ \"Омутинка\" соединение гибкой ошиновки ШР-35 кВ 2Т с СШ-35 кВ ф. \"А\" выполнено болтовым соединением","ПУЭ, п.4.2.46",1,null,null,null,"Ермеев Р.З."]
["РУТН Западной Сибири","АО \"Тюменьэнерго\"","Тюменские РС","Южное ТПО","УФО","АП-ЗС-049/16-КП","2016-10-28",28,"На ПС 110 кВ \"Омутинка\" соединение гибкой ошиновки ЛР-35 кВ \"Ситниково\" ф. \"В\" выполнено болтовым соединением","ПУЭ, п.4.2.46",1,null,null,null,"Ермеев Р.З."]
["РУТН Западной Сибири","АО \"Тюменьэнерго\"","Тюменские РС","Южное ТПО","УФО","АП-ЗС-049/16-КП","2016-10-28",29,"На ПС 110 кВ \"Омутинка\" отсутствует надпись \"Включено\" и \"Отключено\" на ключе управления установленного на шкафу управления охлаждением 1Т","ПТЭ, п.5.4.27",1,null,null,"+","Ермеев Р.З."]
["РУТН Западной Сибири","АО \"Тюменьэнерго\"","Тюменские РС","Южное ТПО","УФО","АП-ЗС-049/16-КП","2016-10-28",30,"На ПС 110 \"Омутинка \"отсутствует надпись, указывающие назначение присоединения и его диспетчерское наименование на рубильниках 0.4 кВ установленных в панелях собственных нужд 1Н, 2Н, 8Н, 9Н в ОПУ","ПТЭ,\nп.5.4.14\n",1,null,null,"+","Ермеев Р.З."]
["РУТН Западной Сибири","АО \"Тюменьэнерго\"","Тюменские РС","Южное ТПО","УФО","АП-ЗС-049/16-КП","2016-10-28",31,"На ПС 110 кВ \"Омутинка\" эксплуатируются светильники освещения ОПУ со снятыми колпаками (рассеивателями), предусмотренными конструкцией светильника","ППР в РФ, 42(в)",12,null,null,null,"Ермеев Р.З."]
["РУТН Западной Сибири","АО \"Тюменьэнерго\"","Тюменские РС","Южное ТПО","УФО","АП-ЗС-049/16-КП","2016-10-28",32,"На ПС 110 кВ \"Омутинка\" плиты перекрытия кабельных каналов на ОРУ-35 кВ имеют разрушения более 50%","ПТЭ, п.5.8.1.",1,null,null,null,"Ермеев Р.З."]
["РУТН Западной Сибири","АО \"Тюменьэнерго\"","Тюменские РС","Южное ТПО","УФО","АП-ЗС-049/16-КП","2016-10-28",33,"На ПС 110 кВ \"Омутинка\" не ведется учет работы РПН 2Т оперативным персоналом (1 раз в месяц фиксация количества переключений)","РД 34.46.501-78,\nп.6.13",1,"С",null,"+","Ермеев Р.З."]
["РУТН Западной Сибири","АО \"Тюменьэнерго\"","Тюменские РС","Южное ТПО","УФО","АП-ЗС-049/16-КП","2016-10-28","","Армизонский РЭС"]
["РУТН Западной Сибири","АО \"Тюменьэнерго\"","Тюменские РС","Южное ТПО","УФО","АП-ЗС-049/16-КП","2016-10-28",34,"В Армизонском РЭС не указываются в актах на ТР разъединителей 110 кВ тип применяемых измерительных приборов, погрешность измерений, дата их очередной поверки","ПТЭ,\nп.п.1.9.12, 1.9.14.,\nГОСТ ИСО/МЭК 17025-2009,\nп.п. 5.10.2, 5.10.3",1,"С",null,null,"Ермеев Р.З."]
["РУТН Западной Сибири","АО \"Тюменьэнерго\"","Тюменские РС","Южное ТПО","УФО","АП-ЗС-049/16-КП","2016-10-28",35,"В Армизонском РЭС не в полном объеме выполняются работы по ТО разъединителей 110 кВ (в актах на ТО отсутствуют сведения о проведенных контролируемых параметров разъединителей согласно технологической карте на ТО разъединителей)","Технологическая карта №10 ТО-12 Техническое обслуживание разъединителей 110, 35 кВ",1,null,null,null,"Ермеев Р.З."]
["РУТН Западной Сибири","АО \"Тюменьэнерго\"","Тюменские РС","Южное ТПО","УФО","АП-ЗС-049/16-КП","2016-10-28",36,"В Армизонском РЭС просрочена периодичность 1 раз в четыре года текущих ремонтов разъединителей типа РНДЗ-110 кВ, РНД-110 кВ (последний ТР проводился в 2012 году)","Периодичность проведения ТО и ремонтов оборудования ПС в филиале АО \"Тюменьэнерго\"- ТРС от 17.12.2015 года",1,null,null,null,"Ермеев Р.З."]
["РУТН Западной Сибири","АО \"Тюменьэнерго\"","Тюменские РС","Южное ТПО","УФО","АП-ЗС-049/16-КП","2016-10-28",37,"В Армизонском РЭС не в полной мере указываются в актах технического обслуживания и ремонта оборудования тип применяемых измерительных приборов, погрешность измерений, дату их очередной поверки","ПТЭ,\nп.п.1.9.12, 1.9.14.,\nГОСТ ИСО/МЭК 17025-2009,\nп.п. 5.10.2, 5.10.3",1,"С",null,null,"Ермеев Р.З."]
["РУТН Западной Сибири","АО \"Тюменьэнерго\"","Тюменские РС","Южное ТПО","УФО","АП-ЗС-049/16-КП","2016-10-28",38,"В Армизонском РЭС отсутствуют записи в паспортах силовых трансформаторов, ТСН по замене силикагеля и масла в гидрозатворах воздухоосушительных фильтров, не реже 1 раза в 6 месяцев (данные работы не запланированы, отметки в паспортах частично отсутствуют)","ПТЭ,\nп.п.1.5.6, 1.6.1",1,"С",null,null,"Ермеев Р.З."]
["РУТН Западной Сибири","АО \"Тюменьэнерго\"","Тюменские РС","Южное ТПО","УФО","АП-ЗС-049/16-КП","2016-10-28",39,"На ПС 110 кВ \"Армизон\", ПС 110 кВ \"Раздолье\", ПС 110 кВ \"Орлово\" Армизонского РЭС отсутствуют записи о проделанных работах в паспортах КЛ-0.4 кВ 1ТСН, 2ТСН","ПТЭ,\nп.п.1.5.6, 1.6.1",1,"С",null,null,"Ермеев Р.З."]
["РУТН Западной Сибири","АО \"Тюменьэнерго\"","Тюменские РС","Южное ТПО","УФО","АП-ЗС-049/16-КП","2016-10-28",40,"На ПС 110 кВ \"Калмак\" увлажнен силикагель в ВОФ ТТ-110 кВ 1Т ф. \"А\", \"В\", \"С\", 1ТТ-110 кВ ф. \"В\"","ВЛИЭ.670105.001 РЭ, п.4.4",1,null,null,null,"Ермеев Р.З."]
["РУТН Западной Сибири","АО \"Тюменьэнерго\"","Тюменские РС","Южное ТПО","УФО","АП-ЗС-049/16-КП","2016-10-28",41,"На ПС 110 кВ \"Калмак\" отсутствует диспетчерское наименование 1ТТ-110 кВ","ПТЭ,\nп. 5.4.14",4,null,null,null,"Ермеев Р.З."]
["РУТН Западной Сибири","АО \"Тюменьэнерго\"","Тюменские РС","Южное ТПО","УФО","АП-ЗС-049/16-КП","2016-10-28",42,"На ПС 110 кВ \"Раздолье\" не заземлены корпуса металлических бронешлангов с кабелями, проложенными к шкафам приводов разъединителей 110 кВ и ОД КЗ-110 кВ","ПТЭ,\nп. п.5.10.1, 5.10.3\n\n",1,null,null,null,"Ермеев Р.З."]
["РУТН Западной Сибири","АО \"Тюменьэнерго\"","Тюменские РС","Южное ТПО","УФО","АП-ЗС-049/16-КП","2016-10-28",43,"На ПС 110 кВ \"Раздолье\" не заземлен термосигнализатор ТКП-160 1Т через штатный заземляющий болт медным проводником сечением не менее 3 мм2, в соответствии с требованиями инструкции завода-изготовителя","ПТЭ,\nп.5.10.3.,\n2В2.820.219.РЭ,       п.п.4.4, 5.2",1,null,null,null,"Ермеев Р.З."]
["РУТН Западной Сибири","АО \"Тюменьэнерго\"","Тюменские РС","Южное ТПО","УФО","АП-ЗС-049/16-КП","2016-10-28",44,"На ПС 110 кВ \"Раздолье\" не опломбированы в предельно открытом положении вентили герметичных высоковольтных вводов 110 кВ1Т","СО 153-34.46.503,     п.5.6.2",1,null,null,null,"Ермеев Р.З."]
["РУТН Западной Сибири","АО \"Тюменьэнерго\"","Тюменские РС","Южное ТПО","УФО","АП-ЗС-049/16-КП","2016-10-28",45,"На ПС 110 кВ \"Раздолье\" увлажнен силикагель в ВОФ 2Т","ПТЭ, п.5.3.23",1,null,null,null,"Ермеев Р.З."]
["РУТН Западной Сибири","АО \"Тюменьэнерго\"","Тюменские РС","Южное ТПО","УФО","АП-ЗС-049/16-КП","2016-10-28",46,"На ПС 110 кВ \"Армизон\" увлажнен силикагель в ВОФ 2ТН-110 кВ ф.\"А\", \"В\", \"С\"","ВЛИЭ. 671243.003 РЭ, п.3.1.2",1,null,null,null,"Ермеев Р.З."]
["РУТН Западной Сибири","АО \"Тюменьэнерго\"","Тюменские РС","Южное ТПО","УФО","АП-ЗС-049/16-КП","2016-10-28",47,"На ПС 110 кВ \"Армизон\" не заземлены корпуса металлических бронешлангов с кабелями, проложенными к шкафам приводов разъединителей 110 кВ ЛР-110 кВ \"Пятково\", 2РРП-110 кВ","ПТЭ,\nп. п. 5.10.1, 5.10.3\n\n",1,null,null,null,"Ермеев Р.З."]
["РУТН Западной Сибири","АО \"Тюменьэнерго\"","Тюменские РС","Южное ТПО","УФО","АП-ЗС-049/16-КП","2016-10-28",48,"На ПС 110 кВ \"Армизон\" не соответствует требованиям заводской инструкции ошиновка от КС-110 к ЗН КС и ФПЗ(С)-110 ВЛ-110 кВ \"Пятково\" ф. \"В\", ВЛ-110 кВ \"Калмак\" ф. \"В\"","ЖИУК.673430.023 РЭ, п.7.4",1,null,null,null,"Ермеев Р.З."]
["РУТН Западной Сибири","АО \"Тюменьэнерго\"","Тюменские РС","Южное ТПО","УФО","АП-ЗС-049/16-КП","2016-10-28",49,"На ПС 110 кВ \"Армизон\" не выполнена фиксация шиберов стопорными болтами охладителей 2Т, термосифонного фильтра 1Т ","СО 153-34.04.181-2003,\nп. 5.1.6.,\nСО 153-34.46.501,\nп.п. 9.11, 9.33",1,null,null,null,"Ермеев Р.З."]
["РУТН Западной Сибири","АО \"Тюменьэнерго\"","Тюменские РС","Южное ТПО","УФО","АП-ЗС-049/16-КП","2016-10-28",50,"На ПС 110 кВ \"Армизон\" отсутствует бирка с маркировкой на кабеле 0,4 кВ со стороны 1ТСН","ПТЭ, п.5.8.9",1,null,null,null,"Ермеев Р.З."]
["РУТН Западной Сибири","АО \"Тюменьэнерго\"","Тюменские РС","Южное ТПО","УФО","АП-ЗС-049/16-КП","2016-10-28","","Упоровский РЭС"]
["РУТН Западной Сибири","АО \"Тюменьэнерго\"","Тюменские РС","Южное ТПО","УФО","АП-ЗС-049/16-КП","2016-10-28",51,"Отсутствуют таблички с диспетчерскими наименованиями на ЛР-10 кВ Р-161 Зерноток-1","ПТЭ,\nп.5.4.14",5,null,null,null,"Пономарев П.П."]
["РУТН Западной Сибири","АО \"Тюменьэнерго\"","Тюменские РС","Южное ТПО","УФО","АП-ЗС-049/16-КП","2016-10-28",52,"Отсутствуют таблички с диспетчерскими наименованиями на ЛР-10 кВ Р-162 Рембаза","ПТЭ,\nп.5.4.14",5,null,null,null,"Пономарев П.П."]
["РУТН Западной Сибири","АО \"Тюменьэнерго\"","Тюменские РС","Южное ТПО","УФО","АП-ЗС-049/16-КП","2016-10-28",53,"На ПС 110 кВ \"Пятково\" не выполнены мероприятия по повышению надежности ТН серии (НКФ-110-57) для ТН-110 кВ:\n- проверка состояния уплотнений кольцевой прокладки в месте крепления разборного вывода А обмотки ВН с крышкой маслорасширителя (надежность герметизации этого узла);\n- замена заводской прокладки между фланцами патрубка воздухоосушителя и крышкой маслоуказателя; прокладки выполнить из маслостойкой резины толщиной 6-8 мм в соответствии с размерами фланца патрубка воздухоосушителя.","СРМ-2000, \nч.2,\nр. 9.10",1,"ОРД",null,null,"Ермеев Р.З."]
["РУТН Западной Сибири","АО \"Тюменьэнерго\"","Тюменские РС","Южное ТПО","УФО","АП-ЗС-049/16-КП","2016-10-28",54,"ПС 110 кВ \"Пятково\" увлажнен силикагель в ВОФ 2ТН-110 кВ  ф. \"А\", \"В\"","ВЛИЭ. 671243.003 РЭ,  п.3.1.2",1,null,null,null,"Ермеев Р.З."]
["РУТН Западной Сибири","АО \"Тюменьэнерго\"","Тюменские РС","Южное ТПО","УФО","АП-ЗС-049/16-КП","2016-10-28",55,"На ПС 110 кВ \"Пятково\" не соответствует требованиям заводской инструкции ошиновка от КС-110 к ЗН КС и ФПЗ(С)-110 ВЛ-110 кВ \"Заводоуковск\" ф. \"В\", ВЛ-110 кВ \"Армизон\" ф. \"В\", ВЛ-110 кВ \"Буньково\" ф. \"В\"","ЖИУК.673430.023 РЭ, п.7.4",1,null,null,null,"Ермеев Р.З."]
["РУТН Западной Сибири","АО \"Тюменьэнерго\"","Тюменские РС","Южное ТПО","УФО","АП-ЗС-049/16-КП","2016-10-28",56,"На ПС 110 кВ \"Пятково\" отсутствует (разрушен) один изолятор в натяжной гирлянде портала ЛС-110 кВ при переходе на 2ТС-110 кВ ф. \"А\"","РД 34.20.504-94, п.3.2.4",1,null,null,null,"Ермеев Р.З."]
["РУТН Западной Сибири","АО \"Тюменьэнерго\"","Тюменские РС","Южное ТПО","УФО","АП-ЗС-049/16-КП","2016-10-28",57,"На ПС 110 кВ \"Пятково\" оголовник свайного фундамента опорной конструкции ОПН-110 кВ 1Т имеет разрушения (одна свая оголена до арматуры) ","СО 34.20.504-94, п.3.2.2",12,null,null,null,"Ермеев Р.З."]
["РУТН Западной Сибири","АО \"Тюменьэнерго\"","Тюменские РС","Южное ТПО","УФО","АП-ЗС-049/16-КП","2016-10-28",58,"На ПС 110 кВ \"Пятково\" переносное заземление с инвентарным номером №24 имеет обрыв более 5% проводников","СО 153-34.03.603-2003, п.2.17.16",8,null,"А","+","Ковтун А.Ю."]
["РУТН Западной Сибири","АО \"Тюменьэнерго\"","Тюменские РС","Южное ТПО","УФО","АП-ЗС-049/16-КП","2016-10-28",59,"На ПС 110 кВ \"Пятково\" в ОПУ в панелях ЩПТ секции 1 ввода №3 и секции №2 ввода №1 отсутствуют надписи, указывающие номинальный ток плавкой вставки предохранителей","ПТЭ, п.5.4.14",1,null,null,"+","Ермеев Р.З."]
["РУТН Западной Сибири","АО \"Тюменьэнерго\"","Тюменские РС","Южное ТПО","УФО","АП-ЗС-049/16-КП","2016-10-28",60,"Негабарит (не менее 2,9м, факт 2819мм) от ошиновки крайних ячеек КРУН-10 кВ до земли на ПС 110 кВ Упорово.","ПУЭ,\nп. 4.2.58, рис. 4.2.6, таблица 4.2.5.,\nПОТЭЭ,\nп. 23.2 ",1,null,"Б",null,"Пономарев П.П."]
["РУТН Западной Сибири","АО \"Тюменьэнерго\"","Тюменские РС","Южное ТПО","УФО","АП-ЗС-049/16-КП","2016-10-28",61,"Отсутствует временное ограждение зоны негабарита ( (не менее 2,9м, факт 2819мм) от ошиновки крайних ячеек КРУН-10 кВ до земли с установкой плакатов «Стой Напряжение», не внесено данное оборудование в перечень травмоопасных мест на ПС 110 кВ  Упорово.","ПУЭ,\nп. 4.2.58, рис. 4.2.6,таблица 4.2.5.,\nПОТЭЭ,\nп. 23.2 ",8,null,null,null,"Пономарев П.П."]
["РУТН Западной Сибири","АО \"Тюменьэнерго\"","Тюменские РС","Южное ТПО","УФО","АП-ЗС-049/16-КП","2016-10-28",62,"Не соответствует требованиям заводской инструкции ошиновка от КС-110 к ЗН КС и ФПС-110 Горюново фазы В на ПС 110 кВ Упорово.","ЖИУК.673430.023 РЭ Конденсаторы связи (в фарфоровых корпусах) для линий электропередач. Руководство по эксплуатации,\nп.7.4.",1,null,null,null,"Пономарев П.П."]
["РУТН Западной Сибири","АО \"Тюменьэнерго\"","Тюменские РС","Южное ТПО","УФО","АП-ЗС-049/16-КП","2016-10-28",63,"Отсутствуют дренажные отверстия  для слива конденсата жёстких шин в местах их наибольшего прогиба от собственного веса и веса ответвлений на 1С-110 кВ и 2С-110 кВ на ОРУ-110 кВ на ПС 110 кВ Упорово.","СТО 34.01-21-002-2014,\nп.5.4.,\nСТО 56947007-29.060.10.005-2008,\nп.4.4",1,null,null,null,"Пономарев П.П."]
["РУТН Западной Сибири","АО \"Тюменьэнерго\"","Тюменские РС","Южное ТПО","УФО","АП-ЗС-049/16-КП","2016-10-28",64,"Не нанесены опознавательные знаки у мест ввода заземляющих проводников в здание подсобного помещения на ОРУ-110 кВ на ПС 110 кВ Упорово.","ПУЭ,\nп.п. 1.7.118, 1.7.119",7,null,null,null,"Пономарев П.П."]
["РУТН Западной Сибири","АО \"Тюменьэнерго\"","Тюменские РС","Южное ТПО","УФО","АП-ЗС-049/16-КП","2016-10-28",65,"Не выполнена защита от механических повреждений  выхода  кабелей 0,4 кВ из земли в здание подсобного помещения на ОРУ-110 кВ на ПС 110 кВ Упорово.","ПУЭ,\nп. 2.3.15,\nПТЭ,\nп.5.9.21",7,null,null,null,"Пономарев П.П."]
["РУТН Западной Сибири","АО \"Тюменьэнерго\"","Тюменские РС","Южное ТПО","УФО","АП-ЗС-049/16-КП","2016-10-28",66,"Не заменены дефектные крышки кабельных каналов на территории ОРУ-110 кВ на ПС 110 кВ Упорово.","ПТЭ,\nп.5.4.6,\nВППБ 27-14,\nп.5.4.20",1,null,null,null,"Пономарев П.П."]
["РУТН Западной Сибири","АО \"Тюменьэнерго\"","Тюменские РС","Южное ТПО","УФО","АП-ЗС-049/16-КП","2016-10-28",67,"Не окрашен в чёрный цвет заземляющий нож ЗОН-110 1Т на ПС 110 кВ Упорово.","ПТЭ,\nп.5.4.12",1,null,null,null,"Пономарев П.П."]
["РУТН Западной Сибири","АО \"Тюменьэнерго\"","Тюменские РС","Южное ТПО","УФО","АП-ЗС-049/16-КП","2016-10-28",68,"Нарушена целостность бетонного ограждения маслоприемных устройств силовых трансформаторов 1Т и 2Т на ПС 110 кВ Упорово.","ВППБ 27-14,\nп.п.5.2.1,5.2.5.,\nПТЭ,\nп.5.3.3",12,null,"Б",null,"Пономарев П.П."]
["РУТН Западной Сибири","АО \"Тюменьэнерго\"","Тюменские РС","Южное ТПО","УФО","АП-ЗС-049/16-КП","2016-10-28",69,"Наличие растительности на гравийной засыпке маслоприёмных устройств силовых трансформаторов 1Т и 2Т на ПС 110 кВ Упорово.","ВППБ 27-14,\nп.п.5.2.2, 5.2.4,\nПТЭ,\nп.5.3.3",12,null,null,null,"Пономарев П.П."]
["РУТН Западной Сибири","АО \"Тюменьэнерго\"","Тюменские РС","Южное ТПО","УФО","АП-ЗС-049/16-КП","2016-10-28",70,"Не установлены указатели подземных коммуникаций на ПС (кабельных линиях, системах маслосливов к аварийной ёмкости маслосборника)","ПТЭ,\nп.2.1.2",1,null,null,null,"Пономарев П.П."]
["РУТН Западной Сибири","АО \"Тюменьэнерго\"","Тюменские РС","Южное ТПО","УФО","АП-ЗС-049/16-КП","2016-10-28",71,"Не выполнена защита кабеля вторичных цепей струйного реле 1Т от воздействия масла, природных осадков, механического повреждения (на момент проверки металлорукав кабеля выпал из вводного устройства струйного реле) на ПС 110 кВ Упорово.","ПУЭ,\nп. 2.3.15,\nРД 153-34.0-35.518-2001,\nп.2.2",1,null,null,null,"Пономарев П.П."]
["РУТН Западной Сибири","АО \"Тюменьэнерго\"","Тюменские РС","Южное ТПО","УФО","АП-ЗС-049/16-КП","2016-10-28",72,"Не выполнена блокировка РПН 1Т при низких температурах верхних слоев масла в переключающем устройстве согласно исполнительной схеме (отсутствует датчик) на ПС 110 кВ Упорово.","ПТЭ,\nп.5.3.18",1,null,null,null,"Пономарев П.П."]
["РУТН Западной Сибири","АО \"Тюменьэнерго\"","Тюменские РС","Южное ТПО","УФО","АП-ЗС-049/16-КП","2016-10-28",73,"Просачивается трансформаторное масло с термосифонного фильтра силового трансформатора 2Т на ПС 110 кВ Упорово.","ПТЭ,\nп.5.3.1.,\nВППБ 27-14,\nп.5.2.13",1,null,null,null,"Пономарев П.П."]
["РУТН Западной Сибири","АО \"Тюменьэнерго\"","Тюменские РС","Южное ТПО","УФО","АП-ЗС-049/16-КП","2016-10-28",74,"Негабарит (не менее 2,9м, факт 2755мм) от ошиновки ОПН-10 кВ 2Т до земли на ПС 110 кВ Упорово.","ПУЭ,\nп. 4.2.58, рис. 4.2.6,таблица 4.2.5,\nПОТЭЭ,\nп. 23.2 ",1,null,"Б",null,"Пономарев П.П."]
["РУТН Западной Сибири","АО \"Тюменьэнерго\"","Тюменские РС","Южное ТПО","УФО","АП-ЗС-049/16-КП","2016-10-28",75,"Отсутствует временное ограждение зоны негабарита ( (не менее 2,9м, факт 2755мм) от ошиновки ОПН-10 кВ 2Т до земли с установкой плакатов «Стой Напряжение», не внесено данное оборудование в перечень травмоопасных мест на ПС 110 кВ  Упорово.","ПУЭ,\nп. 4.2.58, рис. 4.2.6,таблица 4.2.5.,\nПОТЭЭ,\nп. 23.2 ",8,null,null,null,"Пономарев П.П."]
["РУТН Западной Сибири","АО \"Тюменьэнерго\"","Тюменские РС","Южное ТПО","УФО","АП-ЗС-049/16-КП","2016-10-28",76,"Отклонение от вертикали более допустимого ВЧЗ-35 кВ и КС-35 кВ Буньково фаза А на ОРУ - 35 кВ на ПС 110 кВ Упорово.","РД 34.20.504-94,\nп.3.2.2,\nтабл.4.4 - п.1;\nтабл.3.1 - п.3.3",1,null,"Б",null,"Пономарев П.П."]
["РУТН Западной Сибири","АО \"Тюменьэнерго\"","Тюменские РС","Южное ТПО","УФО","АП-ЗС-049/16-КП","2016-10-28",77,"Не соответствует требованиям заводской инструкции ошиновка от КС-110 к ЗН КС и ФПС-35 Буньково фазы А,В,С на ПС 110 кВ Упорово.","ЖИУК.673430.023 РЭ Конденсаторы связи (в фарфоровых корпусах) для линий электропередач. Руководство по эксплуатации,\nп.7.4",1,null,null,null,"Пономарев П.П."]
["РУТН Западной Сибири","АО \"Тюменьэнерго\"","Тюменские РС","Южное ТПО","УФО","АП-ЗС-049/16-КП","2016-10-28",78,"Отсутствуют мероприятия и графики по устранению болтовых соединений на гибкой ошиновке 1С-35 кВ и 2С-35 кВ на ПС 110 кВ Упорово.","ПТЭ,\nп.п.1.6.1-1.6.3",1,null,null,null,"Пономарев П.П."]
["РУТН Западной Сибири","АО \"Тюменьэнерго\"","Тюменские РС","Южное ТПО","УФО","АП-ЗС-049/16-КП","2016-10-28","","Ялуторовский РЭС"]
["РУТН Западной Сибири","АО \"Тюменьэнерго\"","Тюменские РС","Южное ТПО","УФО","АП-ЗС-049/16-КП","2016-10-28",79,"Не укомплектованы технические акты ТОиР оборудования Ялуторовского РЭС, соответствующими актами дефектации, отсутствуют ссылки на номера соответствующих актов дефектации.","ПТЭ,\nп.п.1.5.50 ,1.5.6",1,"С",null,null,"Пономарев П.П."]
["РУТН Западной Сибири","АО \"Тюменьэнерго\"","Тюменские РС","Южное ТПО","УФО","АП-ЗС-049/16-КП","2016-10-28",80,"В Ялуторовском РЭС отсутствуют записи в паспортах силовых трансформаторов, ТСН по замене силикагеля и масла в гидрозатворах воздухоосушительных фильтров, не реже 1 раза в 6 месяцев (данные работы не запланированы, отметки в паспортах частично отсутствуют)","ПТЭ,\nп.п.1.5.6, 1.6.1",1,"С",null,"+","Ермеев Р.З."]
["РУТН Западной Сибири","АО \"Тюменьэнерго\"","Тюменские РС","Южное ТПО","УФО","АП-ЗС-049/16-КП","2016-10-28",81,"В Ялуторовском РЭС не вносятся в паспорта силовых трансформаторов ПС данные о проведении испытаний и измерений"," ПТЭ, п.п.1.5.5, 1.5.6, 1.7.1",1,"С",null,"+","Ермеев Р.З."]
["РУТН Западной Сибири","АО \"Тюменьэнерго\"","Тюменские РС","Южное ТПО","УФО","АП-ЗС-049/16-КП","2016-10-28",82,"В Ялуторовском РЭС отсутствуют записи о проделанных работах в паспортах КЛ-0.4 кВ 1ТСН, 2ТСН","ПТЭ,\nп.п.1.5.6, 1.6.1",1,"С",null,"+","Ермеев Р.З."]
["РУТН Западной Сибири","АО \"Тюменьэнерго\"","Тюменские РС","Южное ТПО","УФО","АП-ЗС-049/16-КП","2016-10-28",83,"На ПС 110 кВ \"Зиново\" не приняты меры по исключению выноса потенциала электрооборудования, установленного в  вагоне КПП (вагон расположен за пределами ЗУ ПС)","ПУЭ, п.1.7.95",1,null,null,null,"Ермеев Р.З."]
["РУТН Западной Сибири","АО \"Тюменьэнерго\"","Тюменские РС","Южное ТПО","УФО","АП-ЗС-049/16-КП","2016-10-28",84,"На ПС 110 кВ Зиново\" прокладка кабеля связи по конструкции радиомачты мачты и ввод в ОПУ, установленная на территории ПС в районе ОПУ в выполнена с нарушением ПУЭ","ПТЭ, п.5.11.2",1,"Гр",null,null,"Ермеев Р.З."]
["РУТН Западной Сибири","АО \"Тюменьэнерго\"","Тюменские РС","Южное ТПО","УФО","АП-ЗС-049/16-КП","2016-10-28",85,"На ПС 110 кВ \"Зиново\" отсутствует бирка с маркировкой на кабеле 0,4 кВ со стороны 2ТСН","ПТЭ, п.5.8.9",1,null,null,null,"Ермеев Р.З."]
["РУТН Западной Сибири","АО \"Тюменьэнерго\"","Тюменские РС","Южное ТПО","УФО","АП-ЗС-049/16-КП","2016-10-28",86,"На ПС 110 кВ \"Зиново\" не выполнены мероприятия по повышению надежности ТН серии (НКФ-110-57) для 1ТН-110 кВ:\n- проверка состояния уплотнений кольцевой прокладки в месте крепления разборного вывода А обмотки ВН с крышкой маслорасширителя (надежность герметизации этого узла);\n- замена заводской прокладки между фланцами патрубка воздухоосушителя и крышкой маслоуказателя; прокладки выполнить из маслостойкой резины толщиной 6-8 мм в соответствии с размерами фланца патрубка воздухоосушителя.","СРМ-2000, \nч.2,\nр. 9.10",1,"ОРД",null,null,"Ермеев Р.З."]
["РУТН Западной Сибири","АО \"Тюменьэнерго\"","Тюменские РС","Южное ТПО","УФО","АП-ЗС-049/16-КП","2016-10-28",87,"На ПС 110 кВ \"Зиново\" увлажнен силикагель в ВОФ 2ТН-110 кВ ф.\"С\"","ВЛИЭ. 671243.003 РЭ, п.3.1.2",1,null,null,null,"Ермеев Р.З."]
["РУТН Западной Сибири","АО \"Тюменьэнерго\"","Тюменские РС","Южное ТПО","УФО","АП-ЗС-049/16-КП","2016-10-28",88,"На ПС 110 кВ \"Зиново\" просачивается масло из под сливного крана СОВ-110 кВ ф. \"А\"","ПТЭ, п.5.3.1.,  ВППБ 27-14, п.5.2.13",12,null,null,"+","Ермеев Р.З."]
["РУТН Западной Сибири","АО \"Тюменьэнерго\"","Тюменские РС","Южное ТПО","УФО","АП-ЗС-049/16-КП","2016-10-28",89,"На ПС 110 кВ \"Зиново\" кабель питания 0.4 кВ от 2ТСН до ЩСН проложен кабелем с резиновой изоляцией жилы кабеля со стороны 2ТСН имеют растрескивания ","ПТЭ, п.5.9.21",1,null,null,null,"Ковтун А.Ю."]
["РУТН Западной Сибири","АО \"Тюменьэнерго\"","Тюменские РС","Южное ТПО","УФО","АП-ЗС-049/16-КП","2016-10-28",90,"На ПС 110 кВ \"Зиново\" просачивается масло из под предохранительного клапана 2Т","ПТЭ, п.5.3.1.,  ВППБ 27-14, п.5.2.13",12,null,null,null,"Ковтун А.Ю."]
["РУТН Западной Сибири","АО \"Тюменьэнерго\"","Тюменские РС","Южное ТПО","УФО","АП-ЗС-049/16-КП","2016-10-28",91,"Не заменены дефектные крышки кабельных каналов на территории ОРУ-110 кВ на ПС 110 кВ Зиново","ПТЭ,\nп.5.4.6.,\nВППБ 27-14,\nп.5.4.20",1,null,null,null,"Ковтун А.Ю."]
["РУТН Западной Сибири","АО \"Тюменьэнерго\"","Тюменские РС","Южное ТПО","УФО","АП-ЗС-049/16-КП","2016-10-28",92,"Просачивается трансформаторное масло с задвижки силового трансформатора 1Т на ПС 110 кВ Зиново","ПТЭ,\nп.5.3.1.,\nВППБ 27-14,\nп.5.2.13",1,null,null,null,"Ковтун А.Ю."]
["РУТН Западной Сибири","АО \"Тюменьэнерго\"","Тюменские РС","Южное ТПО","УФО","АП-ЗС-049/16-КП","2016-10-28",93,"Загрязнено дно маслоприёмного устройства силового трансформатора 1Т на ПС 110 кВ Зиново. (песок, замасливание)","ПУЭ,\nп. 4.2.69.,\nВППБ 27-14,\nп.п. 5.2.1, 5.2.2",12,null,null,null,"Пономарев П.П."]
["РУТН Западной Сибири","АО \"Тюменьэнерго\"","Тюменские РС","Южное ТПО","УФО","АП-ЗС-049/16-КП","2016-10-28",94,"Не выполнена блокировка РПН 1Т при низких температурах верхних слоев масла в переключающем устройстве согласно исполнительной схеме (отсутствует датчик) на ПС 110 кВ Зиново","ПТЭ,\nп.5.3.18",1,null,null,null,"Пономарев П.П."]
["РУТН Западной Сибири","АО \"Тюменьэнерго\"","Тюменские РС","Южное ТПО","УФО","АП-ЗС-049/16-КП","2016-10-28",95,"Не выполнена блокировка РПН 2Т при низких температурах верхних слоев масла в переключающем устройстве согласно исполнительной схеме (отсутствует датчик) на ПС 110 кВ Зиново","ПТЭ,\nп.5.3.18",1,null,null,null,"Пономарев П.П."]
["РУТН Западной Сибири","АО \"Тюменьэнерго\"","Тюменские РС","Южное ТПО","УФО","АП-ЗС-049/16-КП","2016-10-28",96,"Не выполнена защита кабеля вторичных цепей маслоуказателя бака РПН 1Т от воздействия масла, природных осадков, механического повреждения (на момент проверки металлорукав частично повреждён) на ПС 110 кВ Зиново","ПУЭ,\nп.п. 2.3.15, 5.9.21",4,null,null,null,"Пономарев П.П."]
["РУТН Западной Сибири","АО \"Тюменьэнерго\"","Тюменские РС","Южное ТПО","УФО","АП-ЗС-049/16-КП","2016-10-28",97,"Отсутствует акт замера уклона бака силового трансформатора 1Т, при котором крышка или верхняя часть бака имела бы подъём по направлению к газовому реле не менее 1-1,5%, а маслопровод от бака к расширителю – не менее 2-4% (отсутствуют подкладки под основание со стороны расширителя) на ПС 110 кВ Зиново.","РД 34.46.501-78,\nп.1.13",1,null,null,null,"Ковтун А.Ю."]
["РУТН Западной Сибири","АО \"Тюменьэнерго\"","Тюменские РС","Южное ТПО","УФО","АП-ЗС-049/16-КП","2016-10-28",98,"Не защищён от попадания масла при его растекании от течи с силового трансформатора кабельный канал 2Т, смонтирован на дне маслоприёмника на ПС 110 кВ Зиново","ВППБ 27-14,\nп.5.2.1",1,null,null,null,"Ковтун А.Ю."]
["РУТН Западной Сибири","АО \"Тюменьэнерго\"","Тюменские РС","Южное ТПО","УФО","АП-ЗС-049/16-КП","2016-10-28",99,"Не обновлена окраска в красный цвет выцветшей рукоятки привода заземляющего ножа ЗОН-110 кВ 2Т (жёлтый цвет) на ПС 110 кВ Зиново","ПТЭ,\nп.5.4.12",1,null,null,null,"Пономарев П.П."]
["РУТН Западной Сибири","АО \"Тюменьэнерго\"","Тюменские РС","Южное ТПО","УФО","АП-ЗС-049/16-КП","2016-10-28",100,"Отсутствует площадка, трубчатые перила диаметром 20-40 мм. стационарной лестницы силового трансформатора 2Т  на ПС 110 кВ Зиново","ГОСТ Р 52719-2007,\nп.7.3.,\nРД 34.46.501-78,\nп.1.15.,\nГОСТ 12.2.007.2-75,\nп.3.4",1,null,null,null,"Пономарев П.П."]
["РУТН Западной Сибири","АО \"Тюменьэнерго\"","Тюменские РС","Южное ТПО","УФО","АП-ЗС-049/16-КП","2016-10-28",101,"Не внесены сведения о дефектном стеклянном изоляторе натяжной гирлянды гибкой ошиновки  (стойка 2 портал 1 СОВ-110 кВ (разбит) в журнал дефектов на ПС 110 кВ Зиново","СО 34.20.504-94,\nп.п. 3.2.4.,\nПТЭ,\nп.1.7.9.,табл. 1.1",1,null,null,null,"Пономарев П.П."]
["РУТН Западной Сибири","АО \"Тюменьэнерго\"","Тюменские РС","Южное ТПО","УФО","АП-ЗС-049/16-КП","2016-10-28",102,"Разрушены оголовники бетонных фундаментных свай:\n- шинная опора СОВ-110 кВ в сторону 2ШР-110 СОВ фаза В;\n- 2ШР-110 СОВ фаза С;\n- шинная опора ОПН-10 2Т на ПС 110 кВ Зиново. (частичное разрушение бетона до арматуры).","СО 34.20.504-94,\nп.3.2.",1,null,null,null,"Пономарев П.П."]
["РУТН Западной Сибири","АО \"Тюменьэнерго\"","Тюменские РС","Южное ТПО","УФО","АП-ЗС-049/16-КП","2016-10-28",103,"Отсутствуют зажимные устройства плашечного типа в поддерживающих зажимах ПГН на шлейфах гибкой ошиновки 2 портала 2С-110 кВ фазы А,В,С на ПС 110 кВ Зиново","СО 34.20.504-94,\nп.3.2.3",1,null,null,null,"Пономарев П.П."]
["РУТН Западной Сибири","АО \"Тюменьэнерго\"","Тюменские РС","Южное ТПО","УФО","АП-ЗС-049/16-КП","2016-10-28",104,"Отсутствуют указатели подземных коммуникаций на ПС 110 кВ Зиново. (кабельных линий, системы маслосливов к аварийной ёмкости маслосборника)","ПТЭ,\nп.2.1.2",1,null,null,null,"Ковтун А.Ю."]
["РУТН Западной Сибири","АО \"Тюменьэнерго\"","Тюменские РС","Южное ТПО","УФО","АП-ЗС-049/16-КП","2016-10-28",105,"Не нанесены надписи указывающие назначение на силовые контакторы установленные в приводах выключателей 110 кВ, типа МКП-110 кВ на ПС 110 кВ Зиново","ПТЭ,\nп.п.5.9.4, 5.4.14",1,null,null,null,"Пономарев П.П."]
["РУТН Западной Сибири","АО \"Тюменьэнерго\"","Тюменские РС","Южное ТПО","УФО","АП-ЗС-049/16-КП","2016-10-28",106,"Просачивается трансформаторное масло со сливной задвижки бака фазы А выключателя В-110 кВ Княжево на ПС 110 кВ Зиново","ПТЭ,\nп.5.3.1.,\nВППБ 27-14,\nп.5.2.13",1,null,null,null,"Пономарев П.П."]
["РУТН Западной Сибири","АО \"Тюменьэнерго\"","Тюменские РС","Южное ТПО","УФО","АП-ЗС-049/16-КП","2016-10-28",107,"Загрязнено дно маслоприёмных устройств выключателей В-110 кВ Княжево, СОВ-110 кВ, В-110 кВ Ингалинка, В-110 кВ Заводоуковск на ПС 110 кВ Зиново. (песок, замасливание)","ПУЭ,\nп. 4.2.69.,\nВППБ 27-14,\nп.п. 5.2.1, 5.2.2",12,null,null,null,"Пономарев П.П."]
["РУТН Западной Сибири","АО \"Тюменьэнерго\"","Тюменские РС","Южное ТПО","УФО","АП-ЗС-049/16-КП","2016-10-28",108,"Не соответствует требованиям заводской инструкции ошиновка от КС-110 к ЗН КС и ФПС-110 Княжево фазы А,В,С на ПС 110 кВ Зиново","ЖИУК.673430.023 РЭ Конденсаторы связи (в фарфоровых корпусах) для линий электропередач. Руководство по эксплуатации,\nп.7.4",1,null,null,null,"Пономарев П.П."]
["РУТН Западной Сибири","АО \"Тюменьэнерго\"","Тюменские РС","Южное ТПО","УФО","АП-ЗС-049/16-КП","2016-10-28",109,"Не заперты на висячие замки привода ЗН ВЛ приводов линейных и обходных разъединителей 110 кВ на ПС 110 кВ Зиново, ввиду отсутствия блокировки заземляющих ножей линейных разъединителей со стороны линии с линейными разъединителями противоположных концов линии","РД 34.35.512,\nп.2.2.2",10,null,null,null,"Пономарев П.П."]
["РУТН Западной Сибири","АО \"Тюменьэнерго\"","Тюменские РС","Южное ТПО","УФО","АП-ЗС-049/16-КП","2016-10-28",110,"Просачивается трансформаторное масло со сливных задвижек баков фазы А,В выключателя В-110 кВ Ингалинка на ПС 110 кВ Зиново","ПТЭ,\nп.5.3.1.,\nВППБ 27-14,\nп.5.2.13",1,null,null,null,"Пономарев П.П."]
["РУТН Западной Сибири","АО \"Тюменьэнерго\"","Тюменские РС","Южное ТПО","УФО","АП-ЗС-049/16-КП","2016-10-28",111,"Просачивается трансформаторное масло со сливной задвижки бака фазы А выключателя В-110 кВ Заводоуковск на ПС 110 кВ Зиново","ПТЭ,\nп.5.3.1.,\nВППБ 27-14,\nп.5.2.13",1,null,null,null,"Пономарев П.П."]
["РУТН Западной Сибири","АО \"Тюменьэнерго\"","Тюменские РС","Южное ТПО","УФО","АП-ЗС-049/16-КП","2016-10-28",112,"Не соответствует требованиям заводской инструкции ошиновка от КС-110 к ЗН КС и ФПС-110 Заводоуковск фазы А,В,С на ПС 110 кВ Зиново","ЖИУК.673430.023 РЭ Конденсаторы связи (в фарфоровых корпусах) для линий электропередач. Руководство по эксплуатации,\nп.7.4",1,null,null,null,"Пономарев П.П."]
["РУТН Западной Сибири","АО \"Тюменьэнерго\"","Тюменские РС","Южное ТПО","УФО","АП-ЗС-049/16-КП","2016-10-28",113,"Отсутствуют надписи указывающие номинальный ток плавких вставок в шкафу сварочного поста на ОРУ-110 кВ на ПС 110 кВ Зиново","ПТЭ,\nп.5.4.14",1,null,null,null,"Пономарев П.П."]
["РУТН Западной Сибири","АО \"Тюменьэнерго\"","Тюменские РС","Южное ТПО","УФО","АП-ЗС-049/16-КП","2016-10-28",114,"Отсутствуют надписи положения «Включено» и «Отключено» рубильника в шкафу сварочного поста установленного на ОРУ-110 кВ на ПС 110 кВ Зиново","ПТЭ,\nп.5.4.27",1,null,null,null,"Пономарев П.П."]
["РУТН Западной Сибири","АО \"Тюменьэнерго\"","Тюменские РС","Южное ТПО","УФО","АП-ЗС-049/16-КП","2016-10-28",115,"Не заземлена металлическая горизонтальная траверса портала №2 гибкой ошиновки 1Т (спуски заземления выходят из земли на 1 м. с траверсой нет связи) на ПС 110 кВ Зиново","ПТЭ,\nп.п.5.10.1, 5.10.3",1,null,"А",null,"Пономарев П.П."]
["РУТН Западной Сибири","АО \"Тюменьэнерго\"","Тюменские РС","Южное ТПО","УФО","АП-ЗС-049/16-КП","2016-10-28",116,"Не заземлена металлическая горизонтальная траверса портала №2 гибкой ошиновки 2Т (спуски заземления выходят из земли на 1 м. с траверсой нет связи) на ПС 110 кВ Зиново","ПТЭ,\nп.п.5.10.1, 5.10.3",1,null,"А",null,"Ковтун А.Ю."]
["РУТН Западной Сибири","АО \"Тюменьэнерго\"","Тюменские РС","Южное ТПО","УФО","АП-ЗС-049/16-КП","2016-10-28",117,"Негабарит (не менее 2,9м, факт 2792мм) от ошиновки шинного моста 10 кВ 2Т до земли (кабельного лотка под шинным мостом, ограждением маслоприёмника 2Т) на ПС 110 кВ Зиново","ПУЭ,\nп. 4.2.58, рис. 4.2.6,таблица 4.2.5.,\nПОТЭЭ,\nп. 23.2 ",1,null,"Б",null,"Пономарев П.П."]
["РУТН Западной Сибири","АО \"Тюменьэнерго\"","Тюменские РС","Южное ТПО","УФО","АП-ЗС-049/16-КП","2016-10-28",118,"Отсутствует временное ограждение зоны негабарита ( (не менее 2,9м, факт 2792мм) от шинного моста 10 кВ 2Т до земли (кабельного лотка под шинным мостом, ограждением маслоприёмника 2Т) с установкой плакатов «Стой Напряжение», не внесено данное оборудование в перечень травмоопасных мест на ПС 110 кВ Зиново","ПУЭ,\nп. 4.2.58, рис. 4.2.6,таблица 4.2.5.,\nПОТЭЭ,\nп. 23.2 ",8,null,null,null,"Ковтун А.Ю."]
["РУТН Западной Сибири","АО \"Тюменьэнерго\"","Тюменские РС","Южное ТПО","УФО","АП-ЗС-049/16-КП","2016-10-28",119,"Выполнено на токопроводящую проволоку крепление у части плакатов безопасности на ПС 110 кВ Зиново","СО 153-34.03.603-2003,\nп.2.18.3",8,null,null,null,"Пономарев П.П."]
["РУТН Западной Сибири","АО \"Тюменьэнерго\"","Тюменские РС","Южное ТПО","УФО","АП-ЗС-049/16-КП","2016-10-28",120,"На ПС 110 кВ \"Зиново\" на территории ОРУ установлено составное деревянное антенно-мачтовое сооружение высотой 15 м, отсутствуют акты проверки деревянных опор на загнивание, имеется наклон","РД 153-34.3-20.662-98, таблица 1, п.5",6,null,null,null,"Ковтун А.Ю."]
["РУТН Западной Сибири","АО \"Тюменьэнерго\"","Тюменские РС","Южное ТПО","УФО","АП-ЗС-049/16-КП","2016-10-28",121,"На ПС 110 кВ \"Зиново\" пальцы крепления натяжной гирлянды ошиновки установлены головкой  вниз (должны быть установлены головкой вверх) на портале №  3 1С-110 ф. \"В\" ","РД 34.20.504-94, п.4.10.3",7,null,null,null,"Ковтун А.Ю."]
["РУТН Западной Сибири","АО \"Тюменьэнерго\"","Тюменские РС","Южное ТПО","УФО","АП-ЗС-049/16-КП","2016-10-28",122,"На ПС 110 кВ \"Зиново\" распушен шлейф ф.В (фонарь) ШР-110 1ТН","РД 34.20.504-94, п.3.2.3., ПТЭ, п.5.4.15",1,null,null,null,"Ковтун А.Ю."]
["РУТН Западной Сибири","АО \"Тюменьэнерго\"","Тюменские РС","Южное ТПО","УФО","АП-ЗС-049/16-КП","2016-10-28",123,"На ПС 110 кВ \"Зиново \" разрушается защитный козырёк над входом в здание ОПУ - расслоение бетона, риск падения кусков бетона, травмирование персонала","ПТЭ, п.1.6.1,                               РД 34.21.521-91, п.2.3.17",7,null,null,null,"Ковтун А.Ю."]
["РУТН Западной Сибири","АО \"Тюменьэнерго\"","Тюменские РС","Южное ТПО","УФО","АП-ЗС-049/16-КП","2016-10-28",124,"На ПС 110 кВ \"Зиново\" отсутствует у оперативного запас предохранителей 10кВ, 0,4кВ для ЩСН, ЩПТ","ПТЭ, п. 5.12.10",10,null,null,null,"Ковтун А.Ю."]
["РУТН Западной Сибири","АО \"Тюменьэнерго\"","Тюменские РС","Южное ТПО","УФО","АП-ЗС-049/16-КП","2016-10-28",125,"На ПС 110 кВ \"КС-11\" не выполнены мероприятия по повышению надежности ТН серии (НКФ-110-57) для 2ТН-110 кВ:\n- проверка состояния уплотнений кольцевой прокладки в месте крепления разборного вывода А обмотки ВН с крышкой маслорасширителя (надежность герметизации этого узла);\n- замена заводской прокладки между фланцами патрубка воздухоосушителя и крышкой маслоуказателя; прокладки выполнить из маслостойкой резины толщиной 6-8 мм в соответствии с размерами фланца патрубка воздухоосушителя.","СРМ-2000, \nч.2,\nр. 9.10",1,"ОРД",null,null,"Ермеев Р.З."]
["РУТН Западной Сибири","АО \"Тюменьэнерго\"","Тюменские РС","Южное ТПО","УФО","АП-ЗС-049/16-КП","2016-10-28",126,"На ПС 110 кВ \"КС-11\" отсутствует диспетчерское наименование ОПН-10 кВ 2Т","ПТЭ,\nп. 5.4.14",4,null,null,null,"Ермеев Р.З."]
["РУТН Западной Сибири","АО \"Тюменьэнерго\"","Тюменские РС","Южное ТПО","УФО","АП-ЗС-049/16-КП","2016-10-28",127,"На ПС 110 кВ \"КС-11\" просачивается масло из под верхнего фланца ТСФ резервного трансформатора ","ПТЭ, п.5.3.1.,  ВППБ 27-14, п.5.2.13",12,null,null,null,"Ермеев Р.З."]
["РУТН Западной Сибири","АО \"Тюменьэнерго\"","Тюменские РС","Южное ТПО","УФО","АП-ЗС-049/16-КП","2016-10-28",128,"На ПС 110 кВ \"КС-11\" не откачана вода из емкостей маслосборников","ПТЭ, п.5.3.3",12,null,null,"+","Ермеев Р.З."]
["РУТН Западной Сибири","АО \"Тюменьэнерго\"","Тюменские РС","Южное ТПО","УФО","АП-ЗС-049/16-КП","2016-10-28",129,"На ПС 110 кВ \"КС-11\" не ведется учет работы РПН 1Т, РПН 2Т оперативным персоналом 1 раз в месяц фиксация количества переключений (последняя запись в журнале 01.02.2016 года)","РД 34.46.501-78,\nп.6.13",1,"С",null,"+","Ермеев Р.З."]
["РУТН Западной Сибири","АО \"Тюменьэнерго\"","Тюменские РС","Южное ТПО","УФО","АП-ЗС-049/16-КП","2016-10-28",130,"Не затянута гайка анкерного болта опоры портала №3 на ОРУ-110 кВ на ПС-110 кВ КС-11","СО 34.20.504-94,\nп.3.2.2",1,null,null,null,"Пономарев П.П."]
["РУТН Западной Сибири","АО \"Тюменьэнерго\"","Тюменские РС","Южное ТПО","УФО","АП-ЗС-049/16-КП","2016-10-28",131,"Не соответствует требованиям заводской инструкции ошиновка от КС-110 к ЗН КС и ФПС-110 Княжево фазы А,С на ПС-110 кВ КС-11","ЖИУК.673430.023 РЭ Конденсаторы связи (в фарфоровых корпусах) для линий электропередач. Руководство по эксплуатации,\nп.7.4",1,null,null,null,"Пономарев П.П."]
["РУТН Западной Сибири","АО \"Тюменьэнерго\"","Тюменские РС","Южное ТПО","УФО","АП-ЗС-049/16-КП","2016-10-28",132,"Разрушен бетон фундаментных свай:\n- опора молниеприёмника №1;\n- опора ТСН-1 (частичное разрушение бетона до арматуры) на ПС-110 кВ КС-11.","СО 34.20.504-94,\nп.3.2",1,null,null,null,"Пономарев П.П."]
["РУТН Западной Сибири","АО \"Тюменьэнерго\"","Тюменские РС","Южное ТПО","УФО","АП-ЗС-049/16-КП","2016-10-28",133,"Отсутствует защитный металлорукав на выходе кабелей из шкафов клеммных коробок мачт освещения на ОРУ-110/10 кВ на ПС-110 кВ КС-11.","ПУЭ,\nп.4.2.141.,\nПТЭ,\nп.5.11.2",1,null,null,null,"Пономарев П.П."]
["РУТН Западной Сибири","АО \"Тюменьэнерго\"","Тюменские РС","Южное ТПО","УФО","АП-ЗС-049/16-КП","2016-10-28",134,"Не произведен ремонт заземляющих спусков на части опор молниеприёмников (никуда не присоединены) на ОРУ-110/10 кВ на ПС-110 кВ КС-11.","СО 34.20.504-94, \nп. 3.2.5",7,null,null,null,"Пономарев П.П."]
["РУТН Западной Сибири","АО \"Тюменьэнерго\"","Тюменские РС","Южное ТПО","УФО","АП-ЗС-049/16-КП","2016-10-28",135,"Не соответствует требованиям заводской инструкции ошиновка от КС-110 к ЗН КС и ФПС-110 Богандинка фаза С на ПС-110 кВ КС-11","ЖИУК.673430.023 РЭ Конденсаторы связи (в фарфоровых корпусах) для линий электропередач. Руководство по эксплуатации,\nп.7.4",1,null,null,null,"Пономарев П.П."]
["РУТН Западной Сибири","АО \"Тюменьэнерго\"","Тюменские РС","Южное ТПО","УФО","АП-ЗС-049/16-КП","2016-10-28",136,"Не закрыты грунтом на глубину 0,5 – 0,7м горизонтальные проводники контура заземления на ОРУ 110 кВ в районе 2РРП-110 кВ на ПС-110 кВ КС-11","ПУЭ,\nп.1.7.90",1,null,null,null,"Пономарев П.П."]
["РУТН Западной Сибири","АО \"Тюменьэнерго\"","Тюменские РС","Южное ТПО","УФО","АП-ЗС-049/16-КП","2016-10-28",137,"Не нанесены на видном месте внешней обшивки контейнерного здания \"подсобного помещения\" трафарет с фамилиями лиц, ответственных за безопасную эксплуатацию здания, а также за пожарную безопасность на ПС-110 кВ КС-11","РД 34.03.219,\nп.3.1.2",7,null,null,null,"Пономарев П.П."]
["РУТН Западной Сибири","АО \"Тюменьэнерго\"","Тюменские РС","Южное ТПО","УФО","АП-ЗС-049/16-КП","2016-10-28",138,"Не проведён инструктаж по охране труда оперативному персоналу, использующему для работы мобильное здание \"подсобное помещение\", с оформлением в «Журнале учёта инструктажей по охране труда» на ПС-110 кВ КС-11","РД 34.03.219,\nп.1.8",8,null,null,null,"Пономарев П.П."]
["РУТН Западной Сибири","АО \"Тюменьэнерго\"","Тюменские РС","Южное ТПО","УФО","АП-ЗС-049/16-КП","2016-10-28",139,"Не оформлены на контейнерное здание \"подсобное помещение\" на ПС-110 кВ КС-11:\n- технический паспорт;\n- инструкция по безопасной эксплуатации;\n- схема электроснабжения и подключения к электросети;\n- схема заземления (зануления);\n- акт приемки в эксплуатацию;\n- протоколы замеров сопротивления изоляции и защитного заземления;\n- акт осмотра отопительной системы.","РД 34.03.219,\nп.3.1.1",7,null,null,null,"Пономарев П.П."]
["РУТН Западной Сибири","АО \"Тюменьэнерго\"","Тюменские РС","Южное ТПО","УФО","АП-ЗС-049/16-КП","2016-10-28",140,"Отсутствует защитное заземление контейнерного здания \"подсобное помещение\" на ПС-110 кВ КС-11","ПТЭ,\nп.п.5.10.1, 5.10.3",8,null,null,null,"Пономарев П.П."]
["РУТН Западной Сибири","АО \"Тюменьэнерго\"","Тюменские РС","Южное ТПО","УФО","АП-ЗС-049/16-КП","2016-10-28",141,"Отсутствует заземление приводов ЗОН-110 2Т, ЗОН-110 1Т на штатный болт заземления на ПС-110 кВ КС-11","ПТЭ,\nп.п. 5.10.1, 5.10.3",1,null,"А",null,"Пономарев П.П."]
["РУТН Западной Сибири","АО \"Тюменьэнерго\"","Тюменские РС","Южное ТПО","УФО","АП-ЗС-049/16-КП","2016-10-28",142,"Не выполнено заземление к штатным болтам рамы и привода (полоса заземления привода не проварена) выключателя В-110 1Т, типа ВМТ на ПС-110 кВ КС-11","ИБКЖ.674143.001ТО,\nп. 12.2,\n Рис.1",1,null,null,null,"Пономарев П.П."]
["РУТН Западной Сибири","АО \"Тюменьэнерго\"","Тюменские РС","Южное ТПО","УФО","АП-ЗС-049/16-КП","2016-10-28",143,"Течь масла с редуктора в приводе серии ППрК выключателя В-110 1Т на ПС-110 кВ КС-11","6СЯ.753.021,\nРаздел 13\nп.3",1,null,null,null,"Пономарев П.П."]
["РУТН Западной Сибири","АО \"Тюменьэнерго\"","Тюменские РС","Южное ТПО","УФО","АП-ЗС-049/16-КП","2016-10-28",144,"Не выполнена блокировка РПН 1Т при низких температурах верхних слоев масла в переключающем устройстве согласно исполнительной схеме (отсутствует датчик) на ПС-110 кВ КС-11","ПТЭ,\nп.5.3.18",1,null,null,null,"Пономарев П.П."]
["РУТН Западной Сибири","АО \"Тюменьэнерго\"","Тюменские РС","Южное ТПО","УФО","АП-ЗС-049/16-КП","2016-10-28",145,"Не выполнена блокировка РПН 2Т при низких температурах верхних слоев масла в переключающем устройстве согласно исполнительной схеме (отсутствует датчик) на ПС-110 кВ КС-11","ПТЭ,\nп.5.3.18",1,null,null,null,"Пономарев П.П."]
["РУТН Западной Сибири","АО \"Тюменьэнерго\"","Тюменские РС","Южное ТПО","УФО","АП-ЗС-049/16-КП","2016-10-28",146,"Не защищены от механических повреждений кабели от кабельного лотка до маслоприёмника силового трансформатора 2Т на ПС-110 кВ КС-11","ПУЭ,\nп.п. 2.1.63., 2.3.15, 2.3.28,\n2.3.111",1,null,null,null,"Пономарев П.П."]
["РУТН Западной Сибири","АО \"Тюменьэнерго\"","Тюменские РС","Южное ТПО","УФО","АП-ЗС-049/16-КП","2016-10-28",147,"Отсутствуют надписи положения «Включено» и «Отключено» рубильника в шкафу сварочного поста установленного на ОРУ-110 кВ на ПС-110 кВ КС-11","ПТЭ,\nп.5.4.27",1,null,null,null,"Пономарев П.П."]
["РУТН Западной Сибири","АО \"Тюменьэнерго\"","Тюменские РС","Южное ТПО","УФО","АП-ЗС-049/16-КП","2016-10-28",148,"Негабарит (норма - не менее 22см) между установленными ОПН-10 кВ 1Т на ПС-110 кВ КС-11","ПУЭ,\nп. 4.2.54, рис. 4.2.4,таблица 4.2.5",1,null,"Б",null,"Пономарев П.П."]
["РУТН Западной Сибири","АО \"Тюменьэнерго\"","Тюменские РС","Южное ТПО","УФО","АП-ЗС-049/16-КП","2016-10-28",149,"Не выполнена покраска в чёрный цвет заземляющего ножа ЗОН-110 1Т на ПС-110 кВ КС-11","ПТЭ,\nп.5.4.12",1,null,null,null,"Пономарев П.П."]
["РУТН Западной Сибири","АО \"Тюменьэнерго\"","Тюменские РС","Южное ТПО","УФО","АП-ЗС-049/16-КП","2016-10-28",150,"Не подписан шкаф кабеля 0,4 кВ 1ТСН на ПС-110 кВ КС-11.","ПТЭ,\nп.5.4.14",1,null,null,null,"Пономарев П.П."]
["РУТН Западной Сибири","АО \"Тюменьэнерго\"","Тюменские РС","Южное ТПО","УФО","АП-ЗС-049/16-КП","2016-10-28",151,"Не заменён трёхжильный кабель КЛ-0,4 1ТСН на ПС-110 кВ КС-11.\nВ сетях 0,4кВ с глухозаземлённой нейтралью прокладка нулевых жил отдельно от фазных не допускается","ПУЭ,\nп.2.3.52",1,null,null,null,"Ковтун А.Ю."]
["РУТН Западной Сибири","АО \"Тюменьэнерго\"","Тюменские РС","Южное ТПО","УФО","АП-ЗС-049/16-КП","2016-10-28",152,"Не заменён трёхжильный кабель КЛ-0,4 2ТСН на ПС-110 кВ КС-11. В сетях 0,4кВ с глухозаземлённой нейтралью прокладка нулевых жил отдельно от фазных не допускается","ПУЭ,\nп.2.3.52",1,null,null,null,"Ковтун А.Ю."]
["РУТН Западной Сибири","АО \"Тюменьэнерго\"","Тюменские РС","Южное ТПО","УФО","АП-ЗС-049/16-КП","2016-10-28",153,"Не установлены указатели подземных коммуникаций на ПС (кабельных линий, системы маслосливов к аварийной ёмкости маслосборника) на ПС-110 кВ КС-11","ПТЭ,\nп.2.1.2",1,null,null,null,"Пономарев П.П."]
["РУТН Западной Сибири","АО \"Тюменьэнерго\"","Тюменские РС","Южное ТПО","УФО","АП-ЗС-049/16-КП","2016-10-28",154,"Не зачищено место разлива трансформаторного масла, отсутствует обвалование резервного трансформатора на ОРУ-110 кВ на ПС-110 кВ КС-11","ВППБ 27-14,\nп.п.5.10.5, 5.10.7",12,null,null,null,"Пономарев П.П."]
["РУТН Западной Сибири","АО \"Тюменьэнерго\"","Тюменские РС","Южное ТПО","УФО","АП-ЗС-049/16-КП","2016-10-28",155,"Не дополнено место хранения аварийного резерва резервного трансформатора табличкой белого цвета с надписью красного цвета: «Аварийный резерв» с указанием контактной информации лица, ответственного за его хранение на ПС-110 кВ КС-11","Регламент организации\nОАО «Тюменьэнерго»\nРЕ-ИА-40.13.11.130-2-27-03-2014,\nп.12.6.6",1,null,null,null,"Ковтун А.Ю."]
["РУТН Западной Сибири","АО \"Тюменьэнерго\"","Тюменские РС","Южное ТПО","УФО","АП-ЗС-049/16-КП","2016-10-28",156,"Не нанесены опознавательные знаки у мест ввода заземляющих проводников в здания ОПУ, аккумуляторной батареи и помещения группы ПС на ОРУ-110 кВ на ПС-110 кВ КС-11","ПУЭ,\nп.п. 1.7.118, 1.7.119",7,null,null,null,"Пономарев П.П."]
["РУТН Западной Сибири","АО \"Тюменьэнерго\"","Тюменские РС","Южное ТПО","УФО","АП-ЗС-049/16-КП","2016-10-28",157,"Не откачан резервный колодец от сезонной воды и масла, отсутствует защитная крышка колодца на ОРУ-110 кВ на ПС-110 кВ КС-11","ВППБ 27-14,\nп.5.2.8",12,null,null,null,"Пономарев П.П."]
["РУТН Западной Сибири","АО \"Тюменьэнерго\"","Тюменские РС","Южное ТПО","УФО","АП-ЗС-049/16-КП","2016-10-28",158,"Не приложены в акт капитального ремонта силового трансформатора все сертификаты на использованные в процессе ремонта материалы, запчасти (Акт капитального ремонта 1Т на ПС 110 кВ КС-11 от 01.09.2015. отсутствуют паспорта, сертификаты на замененные при ремонте предохранительный клапан, струйное и газовое реле)","СО 34.04.181-2003,\nп.5.1.21",1,null,null,null,"Пономарев П.П."]
["РУТН Западной Сибири","АО \"Тюменьэнерго\"","Тюменские РС","Южное ТПО","УФО","АП-ЗС-049/16-КП","2016-10-28",159,"Не приложены в акт капитального ремонта силового трансформатора все сертификаты на использованные в процессе ремонта материалы, запчасти (Акт капитального ремонта 2Т на ПС 110 кВ КС-11 от 15.07.2016. отсутствуют паспорта, сертификаты на замененные при ремонте струйное и газовое реле)","СО 34.04.181-2003,\nп.5.1.21",1,"С",null,null,"Пономарев П.П."]
["РУТН Западной Сибири","АО \"Тюменьэнерго\"","Тюменские РС","Южное ТПО","УФО","АП-ЗС-049/16-КП","2016-10-28",160,"Отсутствует в акте капитального ремонта силового трансформатора запись о проверке цепи заземления бака (Акт капитального ремонта 2Т на ПС 110 кВ КС-11 от 15.07.2016.)","ПТЭ,\nп.п.5.10.1,5.10.3,\nГОСТ 12.2.007.0         раздел 3.3",1,"С",null,null,"Пономарев П.П."]
["РУТН Западной Сибири","АО \"Тюменьэнерго\"","Тюменские РС","Южное ТПО","УФО","АП-ЗС-049/16-КП","2016-10-28",161,"Отсутствуют в паспортах конденсаторов связи Ялуторовского РЭС записи по проведению измерения ёмкости и тангенса угла потерь (протоколы предоставлены)","ПТЭ,\nп.п.1.5.5, 1.5.6",1,"С",null,null,"Пономарев П.П."]
["РУТН Западной Сибири","АО \"Тюменьэнерго\"","Тюменские РС","Южное ТПО","УФО","АП-ЗС-049/16-КП","2016-10-28",162,"Не внесены в полном объёме данные в паспорта на высокочастотные заградители Ялуторовского РЭС (отсутствует часть данных) ","ПТЭ,\nп.1.5.5, 1.5.6",1,"С",null,null,"Пономарев П.П."]
["РУТН Западной Сибири","АО \"Тюменьэнерго\"","Тюменские РС","Южное ТПО","УФО","АП-ЗС-049/16-КП","2016-10-28","","Заводоуковский РЭС"]
["РУТН Западной Сибири","АО \"Тюменьэнерго\"","Тюменские РС","Южное ТПО","УФО","АП-ЗС-049/16-КП","2016-10-28",163,"В паспортах на ТП-10/0,4 кВ отсутствуют протоколы химического анализа трансформаторного масла предназначенного к заливке ТП","РД 34.45-51.300-97 \"Объем и нормы испытаний\nэлектрооборудования\",    п.25.2.2",5,"С",null,null,"Ермеев Р.З."]
["РУТН Западной Сибири","АО \"Тюменьэнерго\"","Тюменские РС","Южное ТПО","УФО","АП-ЗС-049/16-КП","2016-10-28",164,"В паспорте ТП-10/0,4 кВ №7 отсутствует протокол (записи) об испытании разрядников","ПТЭ,\nп.п.1.5.6, 1.6.1",5,"С",null,"+","Ермеев Р.З."]
["РУТН Западной Сибири","АО \"Тюменьэнерго\"","Тюменские РС","Южное ТПО","УФО","АП-ЗС-049/16-КП","2016-10-28",165,"В паспорте ВЛ-10 кВ Правда отсутствуют данные по стреле провеса","РД 153-34.3-20.662-98, п.7.4",5,"С",null,"+","Ермеев Р.З."]
["РУТН Западной Сибири","АО \"Тюменьэнерго\"","Тюменские РС","Южное ТПО","УФО","АП-ЗС-049/16-КП","2016-10-28",166,"Отсутствует роспись в журнале регистрации устройств ПБВ на ТП 10/0,4 кВ Заводоуковского РЭС по ПС Заводоуковская, ВЛ-10 кВ Зерновой, №ТП-213, запись от 18.08.2016г. о переводе ПБВ из 2 в 3 положение","ПТЭ,\nп.1.5.5, 1.5.6",5,null,null,null,"Пономарев П.П."]
["РУТН Западной Сибири","АО \"Тюменьэнерго\"","Тюменские РС","Южное ТПО","УФО","АП-ЗС-049/16-КП","2016-10-28",167,"Не указан в ведомости дефектов Заводоуковского РЭС, ВЛ 10 кВ Правда от 12.02.2016г. поперечный наклон стойки опоры №90, в листе осмотра ВЛ от 11.02.2016г. Поперечный наклон стойки данной опоры зафиксирован","ПТЭ,\nп.п.1.5.5, 1.5.6",5,null,null,null,"Пономарев П.П."]
["РУТН Западной Сибири","АО \"Тюменьэнерго\"","Тюменские РС","Южное ТПО","УФО","АП-ЗС-049/16-КП","2016-10-28",168,"Не утверждены однолинейные схемы ТП-10/0,4 кВ (срок переутверждения не реже 1 раз в 3 года)","ПТЭ,\nп.п.1.7.5, 1.7.6",5,null,null,null,"Пономарев П.П."]
["РУТН Западной Сибири","АО \"Тюменьэнерго\"","Тюменские РС","Южное ТПО","УФО","АП-ЗС-049/16-КП","2016-10-28",169,"н.п. Падун ВЛ-0,4 кВ №2 от ТП-10/0,4 кВ №402 ул. Совхозная наличие кустарника (поросли), верхняя часть крон приближена к проводам на расстояние менее 3 м в пролете опор №22-№23","РД 153-34.3-20.573-2001, приложение В, Т42",5,null,null,null,"Пономарев П.П."]
["РУТН Западной Сибири","АО \"Тюменьэнерго\"","Тюменские РС","Южное ТПО","УФО","АП-ЗС-049/16-КП","2016-10-28",170,"н.п. Падун ВЛ-0,4 кВ №1 от ТП-10/0,4 кВ №401 ул. Береговая плохо просматриваются нумерация и постоянные знаки на опорах с №1 по №8","РД 153-34.3-20.662-98, п.8.2.2",5,null,null,null,"Пономарев П.П."]
["РУТН Западной Сибири","АО \"Тюменьэнерго\"","Тюменские РС","Южное ТПО","УФО","АП-ЗС-049/16-КП","2016-10-28",171,"н.п. Падун ВЛ-0,4 кВ №2 от ТП-10/0,4 кВ №401 ул. Береговая плохо просматриваются нумерация и постоянные знаки на опорах с №1 по №21","РД 153-34.3-20.662-98, п.8.2.2",5,null,null,null,"Пономарев П.П."]
["РУТН Западной Сибири","АО \"Тюменьэнерго\"","Тюменские РС","Южное ТПО","УФО","АП-ЗС-049/16-КП","2016-10-28",172,"н.п. Падун ВЛ-0,4кВ №2 от ТП-10/0,4кВ №401 ул. Береговая разрегулирован провод в пролете опор №12-№12/1, №14-№16","РД 153-34.3-20.662-98, п.6.2",5,null,null,null,"Пономарев П.П."]
["РУТН Западной Сибири","АО \"Тюменьэнерго\"","Тюменские РС","Южное ТПО","УФО","АП-ЗС-049/16-КП","2016-10-28",173,"н.п. Падун ВЛ-0,4кВ №3 от ТП-10/0,4кВ №401 ул. Береговая плохо просматриваются нумерация и постоянные знаки на опорах с №1 по №11","РД 153-34.3-20.662-98, п.8.2.2",5,null,null,null,"Пономарев П.П."]
["РУТН Западной Сибири","АО \"Тюменьэнерго\"","Тюменские РС","Южное ТПО","УФО","АП-ЗС-049/16-КП","2016-10-28",174,"н.п. Лыбаево ВЛ-0,4 кВ №1 от ТП-10/0,4 кВ №193 под опорой №1 наличие кустарника (поросли), верхняя часть крон приближена к проводам на расстояние менее 3 м","РД 153-34.3-20.573-2001, приложение В, Т42",5,null,null,null,"Пономарев П.П."]
["РУТН Западной Сибири","АО \"Тюменьэнерго\"","Тюменские РС","Южное ТПО","УФО","АП-ЗС-049/16-КП","2016-10-28",175,"ВЛ-10 кВ Шестаково опора № 227/5 РЛНД-10 кВ скол поверхности изолятора разъединителя","РД 153-34.3-20.573-2001, приложение А, А31",5,null,null,null,"Пономарев П.П."]
["РУТН Западной Сибири","АО \"Тюменьэнерго\"","Тюменские РС","Южное ТПО","УФО","АП-ЗС-049/16-КП","2016-10-28",176,"ВЛ-10 кВ Шиликуль опора №132 продольный наклон опоры (отклонение верхнего конца стойки от вертикальной оси вдоль линии превышает 0,3 м)","РД 153-34.3-20.662-98, п.8.2.3",5,null,null,null,"Пономарев П.П."]
["РУТН Западной Сибири","АО \"Тюменьэнерго\"","Тюменские РС","Южное ТПО","УФО","АП-ЗС-049/16-КП","2016-10-28",177,"ТП-10/0,4 кВ №416 н.п. Падун не заглублен горизонтальный заземлитель ТП","ПУЭ, п.1.7.90",5,null,null,null,"Пономарев П.П."]
["РУТН Западной Сибири","АО \"Тюменьэнерго\"","Тюменские РС","Южное ТПО","УФО","АП-ЗС-049/16-КП","2016-10-28",178,"ТП-10/0,4 кВ №92 н.п. Лыбаево:\n- не указано назначение присоединений и их диспетчерское наименование. резервного автомата АВ-0,4кВ, вводного автоматического выключателя 0.4 кВ;\n- не подписан ток плавкой вставки предохранителя освещения РУ-0,4кВ;- не подписана розетка 0,4кВ ","ПТЭ, п.5.4.14",5,null,null,null,"Пономарев П.П."]
["РУТН Западной Сибири","АО \"Тюменьэнерго\"","Тюменские РС","Южное ТПО","УФО","АП-ЗС-049/16-КП","2016-10-28",179,"ТП-10/0,4 кВ №407 н.п. Лыбаево:                                                                       - не указано назначение присоединений и их диспетчерское наименование. резервного автомата АВ-0,4кВ, вводного автоматического выключателя 0.4 кВ;\n- не подписан ток плавкой вставки предохранителя освещения РУ-0,4кВ;\n- не подписана розетка 0,4кВ","ПТЭ, п.5.4.14",5,null,null,null,"Пономарев П.П."]
["РУТН Западной Сибири","АО \"Тюменьэнерго\"","Тюменские РС","Южное ТПО","УФО","АП-ЗС-049/16-КП","2016-10-28",180,"ТП-10/0.4кВ №115 н.п. Лыбаево отсутствует однолинейная схема ТП","ПТЭ, п.1.7.8",5,null,null,null,"Пономарев П.П."]
["РУТН Западной Сибири","АО \"Тюменьэнерго\"","Тюменские РС","Южное ТПО","УФО","АП-ЗС-049/16-КП","2016-10-28",181,"н.п. Гилево ВЛ-0,4 кВ №1 от ТП-10/0,4 кВ №455 ул. Береговая плохо просматриваются нумерация и постоянные знаки на опорах №1 по №17","РД 153-34.3-20.662-98, п.8.2.2",5,null,null,null,"Ермеев Р.З."]
["РУТН Западной Сибири","АО \"Тюменьэнерго\"","Тюменские РС","Южное ТПО","УФО","АП-ЗС-049/16-КП","2016-10-28",182,"н.п. Гилево ВЛ-0,4 кВ №1 от ТП-10/0,4 кВ №455 ул. Береговая наличие кустарника (поросли), верхняя часть крон приближена к проводам на расстояние менее 3 м в пролете опор в пролете опор №16-№17","РД 153-34.3-20.573-2001, приложение В, Т42",5,null,null,null,"Ермеев Р.З."]
["РУТН Западной Сибири","АО \"Тюменьэнерго\"","Тюменские РС","Южное ТПО","УФО","АП-ЗС-049/16-КП","2016-10-28",183,"н.п. Лыбаево ВЛ-0,4 кВ №1 от ТП-10/0,4 кВ №193 разрегулирован провода в пролете опор №1-№3","РД 153-34.3-20.662-98, п.6.2",5,null,null,null,"Ермеев Р.З."]
["РУТН Западной Сибири","АО \"Тюменьэнерго\"","Тюменские РС","Южное ТПО","УФО","АП-ЗС-049/16-КП","2016-10-28",184,"ВЛ-10 кВ Южный в пролете опор №82 и №120 наличие кустарника (под проводами имеются кусты, поросль, верхняя часть кроны которых приближена к проводам на расстояние менее 3 м)","РД 153-34.3-20.573-2001, приложение А, Т43",5,null,null,"+","Ермеев Р.З."]
["РУТН Западной Сибири","АО \"Тюменьэнерго\"","Тюменские РС","Южное ТПО","УФО","АП-ЗС-049/16-КП","2016-10-28",185,"ВЛ-10 кВ Сельэнерго опоры №187 и №188 поперечный наклон опоры (отклонение верхнего конца стойки от вертикальной оси вдоль линии превышает 0,3 м)","РД 153-34.3-20.662-98, п.8.2.3",5,null,null,null,"Ермеев Р.З."]
["РУТН Западной Сибири","АО \"Тюменьэнерго\"","Тюменские РС","Южное ТПО","УФО","АП-ЗС-049/16-КП","2016-10-28",186,"ТП-10/0,4 кВ №4 н.п. Сосновка:\n- низкий уровень масла;\n- отсутствуют температурные метки на масломерном стекле.","РД 153-34.3-20.573-2001, приложение Б, Я14.,    ПТЭ, п.5.3.11",5,null,null,null,"Ермеев Р.З."]
["РУТН Западной Сибири","АО \"Тюменьэнерго\"","Тюменские РС","Южное ТПО","УФО","АП-ЗС-049/16-КП","2016-10-28",187,"ТП-10/0,4 кВ №178 н.п. Гилево сколы проходного изолятора 10 кВ ф. \"В\", соединения спусков 10кВ к проходным изоляторам выполнены скруткой","РД 153-34.3-20.662-98, п.6.3.,                                РД 153-34.3-20.573-2001, приложение Б, В41",5,null,null,null,"Ермеев Р.З."]
["РУТН Западной Сибири","АО \"Тюменьэнерго\"","Тюменские РС","Южное ТПО","УФО","АП-ЗС-049/16-КП","2016-10-28",188,"ТП-10/0,4 кВ №58 н.п. Лыбаево:\n- не указано назначение присоединений и их диспетчерское наименование вводного автоматического выключателя 0.4 кВ;                                                                                                                     - не подписан ток плавкой вставки предохранителя освещения РУ-0,4кВ;\n- не подписана розетка 0,4кВ.","ПТЭ, п.5.4.14",5,null,null,null,"Ермеев Р.З."]
["РУТН Западной Сибири","АО \"Тюменьэнерго\"","Тюменские РС","Южное ТПО","УФО","АП-ЗС-049/16-КП","2016-10-28",189,"ТП-10/0,4 кВ №57 н.п. Лыбаево:\n- не указано назначение присоединений и их диспетчерское наименование вводного автоматического выключателя 0.4 кВ;\n- не подписан ток плавкой вставки предохранителя освещения РУ-0,4кВ;\n- не нанесены диспетчерское наименование ОПН-10 кВ.","ПТЭ, п.5.4.14",5,null,null,null,"Ермеев Р.З."]
["РУТН Западной Сибири","АО \"Тюменьэнерго\"","Тюменские РС","Южное ТПО","УФО","АП-ЗС-049/16-КП","2016-10-28",190,"ВЛ-10 кВ \"Школьный\" от ТП-10/0,4 кВ №58 н.п. Лыбаево: складирование сена в охранной зоне под пролетом опор №34-№34/1 ","РД 153-34.3-20.573-2001, приложение А, Т10",5,null,"А",null,"Ермеев Р.З."]
["РУТН Западной Сибири","АО \"Тюменьэнерго\"","Тюменские РС","Южное ТПО","УФО","АП-ЗС-049/16-КП","2016-10-28",191,"ВЛ-10 кВ \"Школьный\" н.п. Лыбаево поперечный наклон опоры №35 (отклонение верхнего конца стойки от вертикальной оси поперек линии превышает 0,5 м)","РД 153-34.3-20.573-2001, приложение А, К14",5,null,null,null,"Ермеев Р.З."]
["РУТН Западной Сибири","АО \"Тюменьэнерго\"","Тюменские РС","Южное ТПО","УФО","АП-ЗС-049/16-КП","2016-10-28","","СИЗП",null,null,null,null,null,"Фадеев С.Г."]
["РУТН Западной Сибири","АО \"Тюменьэнерго\"","Тюменские РС","Южное ТПО","УФО","АП-ЗС-049/16-КП","2016-10-28",192,"Данные испытаний силового трансформатора 1Т ПС 110/10 Петелино не внесены в паспорт ПС.","СО 153-34.08.181-2003, п.5.3.3",1,"С",null,null,"Ермеев Р.З."]
["РУТН Западной Сибири","АО \"Тюменьэнерго\"","Тюменские РС","Южное ТПО","УФО","АП-ЗС-049/16-КП","2016-10-28",193,"Отсутствует схема заземления открытого склада масла на территории ЮТПО","ПТЭ, п. 1.7",7,"С",null,null,"Ермеев Р.З."]
["РУТН Западной Сибири","АО \"Тюменьэнерго\"","Тюменские РС","Южное ТПО","УФО","АП-ЗС-049/16-КП","2016-10-28",194,"На схеме молниезащиты производственной базы Омутинского РЭС отсутствует нумерация молниеотводов.","СО34.20.501-2003, \nп. 5.11.1",7,"С",null,null,"Ермеев Р.З."]
["РУТН Западной Сибири","АО \"Тюменьэнерго\"","Тюменские РС","Южное ТПО","УФО","АП-ЗС-049/16-КП","2016-10-28",195,"В журнале дефектов СИЗП отсутствует отметка об устранении дефекта после замены вводов СВ -110 на ПС 110/10 Красный Яр.","СО 153-34.04.181-2003, \nп.5.4.2",1,"С",null,null,"Ермеев Р.З."]
["РУТН Западной Сибири","АО \"Тюменьэнерго\"","Тюменские РС","Южное ТПО","УФО","АП-ЗС-049/16-КП","2016-10-28",196,"На схеме молниезащиты ПС 35/10 Савиново не обозначена длина и марка грозотроса .","СО34.20.501-2003,  п.5.11.1",1,"С",null,null,"Ермеев Р.З."]
["РУТН Западной Сибири","АО \"Тюменьэнерго\"","Тюменские РС","Южное ТПО","УФО","АП-ЗС-049/16-КП","2016-10-28",197,"В помещении хроматографии химлаборатории отсутствует вытяжной шкаф.","2.  214.2.840.039. РЭ \"Хроматографы газовые лабораторные. Руководство по эксплуатации\", \nп.2.2",8,null,null,null,"Ермеев Р.З."]
["РУТН Западной Сибири","АО \"Тюменьэнерго\"","Тюменские РС","Южное ТПО","УФО","АП-ЗС-049/16-КП","2016-10-28",198,"Данные испытания трансформаторного масла 1Т ПС-110/10 Омутинка не занесены в экспертно-диагностическую систему \"Альбатрос\"","Должностная инструкция инженера химика                \" ДИ-Т12-077-2016\",  п.2.9",1,"С",null,null,"Ермеев Р.З."]
["РУТН Западной Сибири","АО \"Тюменьэнерго\"","Тюменские РС","Южное ТПО","УФО","АП-ЗС-049/16-КП","2016-10-28","","ВЛ-110 кВ Заводоуковск - Омутинка с отпайкой на ПС Полевая"]
["РУТН Западной Сибири","АО \"Тюменьэнерго\"","Тюменские РС","Южное ТПО","УФО","АП-ЗС-049/16-КП","2016-10-28",199,"Не выполнена раскопка фундаментов опоры № 2 (на момент проверки фундамент заглублен в грунт) (далее участок Заводоуковск - Вагай)","СО 34.20.504-94, \nп. 3.2.2",2,null,null,"+","Фадеев С.Г."]
["РУТН Западной Сибири","АО \"Тюменьэнерго\"","Тюменские РС","Южное ТПО","УФО","АП-ЗС-049/16-КП","2016-10-28",200,"Не устранено отклонение изолирующей поддерживающей подвески на нижнем правом проводе от проектного положения сверх допустимого значения на опоре № 26","СО 34.20.504-94, \nп. 3.2.4",2,null,null,null,"Фадеев С.Г."]
["РУТН Западной Сибири","АО \"Тюменьэнерго\"","Тюменские РС","Южное ТПО","УФО","АП-ЗС-049/16-КП","2016-10-28",201,"Не устранено загрязнение изоляторов на опоре № 26,4","СО 34.20.504-94, \nп. 3.2.4",2,null,null,null,"Шеков Е.А."]
["РУТН Западной Сибири","АО \"Тюменьэнерго\"","Тюменские РС","Южное ТПО","УФО","АП-ЗС-049/16-КП","2016-10-28",202,"Не произведен инструментальный замер наклона опор № 92, 93, 98, 104, 121, 209 (отклонение от вертикали)","СО 34.20.504-94,\nп.п.4.5.1.4, 5.3.4, т. 4.4,\nт. 5.1.,\nПУЭ,\nп.2.5.8.,\nПТЭ,\nп.1.1.7",2,null,null,null,"Фадеев С.Г."]
["РУТН Западной Сибири","АО \"Тюменьэнерго\"","Тюменские РС","Южное ТПО","УФО","АП-ЗС-049/16-КП","2016-10-28",203,"Не выполнено двойное крепление проводов на опорах №№ 106 и 107; 113 и 114 (пересечение с железной)","ПУЭ,                                       п.п. 2.5.256, 2.5.257",2,null,null,null,"Фадеев С.Г."]
["РУТН Западной Сибири","АО \"Тюменьэнерго\"","Тюменские РС","Южное ТПО","УФО","АП-ЗС-049/16-КП","2016-10-28",204,"Отсутствует смазка оттяжки опор № 95 (далее участок Вагай - Омутинка)","СО 34.20.504-94, \nп. 3.2.2",2,null,null,"+","Фадеев С.Г."]
["РУТН Западной Сибири","АО \"Тюменьэнерго\"","Тюменские РС","Южное ТПО","УФО","АП-ЗС-049/16-КП","2016-10-28",205,"Не произведен инструментальный замер наклона опор № 112,123 (отклонение от вертикали)","СО 34.20.504-94,\nп.п.4.5.1.4, 5.3.4, т. 4.4,\nт. 5.1.,\nПУЭ,\nп.2.5.8.,\nПТЭ,\nп.1.1.7",2,null,null,null,"Фадеев С.Г."]
["РУТН Западной Сибири","АО \"Тюменьэнерго\"","Тюменские РС","Южное ТПО","УФО","АП-ЗС-049/16-КП","2016-10-28",206,"Не выполнено двойное крепление проводов на опорах №№ 122 и 123 (пересечение с железной дорогой)","ПУЭ,                                       п.п. 2.5.256, 2.5.257",2,null,null,null,"Фадеев С.Г."]
["РУТН Западной Сибири","АО \"Тюменьэнерго\"","Тюменские РС","Южное ТПО","УФО","АП-ЗС-049/16-КП","2016-10-28",207,"Имеется сквозная трещина (10 см.) в основании железо-бетонной опоры № 118","СО 34.20.504-94, \nп. 3.2.2",2,null,null,null,"Фадеев С.Г."]
["РУТН Западной Сибири","АО \"Тюменьэнерго\"","Тюменские РС","Южное ТПО","УФО","АП-ЗС-049/16-КП","2016-10-28",208,"Не установлен в проектное положение гаситель вибрации (ГВН) на грозотросе (ГТ) на опоре № 118 по направлению пролета на опору № 119","СО 34.20.504-94,\nп. 5.7.1",2,null,null,null,"Фадеев С.Г."]
["РУТН Западной Сибири","АО \"Тюменьэнерго\"","Тюменские РС","Южное ТПО","УФО","АП-ЗС-049/16-КП","2016-10-28","","ВЛ-35 кВ Омутинка - Плетнево"]
["РУТН Западной Сибири","АО \"Тюменьэнерго\"","Тюменские РС","Южное ТПО","УФО","АП-ЗС-049/16-КП","2016-10-28",209,"Не обеспечена нормативная ширина просеки в пролетах опор №№ 37 - 39","РД 34.20.504-94,\nп.3.2.1",2,null,null,null,"Фадеев С.Г."]
["РУТН Западной Сибири","АО \"Тюменьэнерго\"","Тюменские РС","Южное ТПО","УФО","АП-ЗС-049/16-КП","2016-10-28",210,"Не выполнена очистка просеки от порубочных остатков ДКР в пролетах опор № 322 - 323","СО 34.20.504-94,\nп. 5.1.5 (а).,\nВППБ 27-14,\nп.п.5.8.8, 5.8.10",2,null,null,null,"Фадеев С.Г."]
["РУТН Западной Сибири","АО \"Тюменьэнерго\"","Тюменские РС","Южное ТПО","УФО","АП-ЗС-049/16-КП","2016-10-28",211,"Не обновлен постоянный знак с наименованием ВЛ, номером опоры и знаки безопасности на опоре № 324","ПТЭ,\nп.5.7.12.,\nСО 34.20.504-94.,\nп.п.3.2.2, 4.5.1.2.,\nПУЭ,\nп.п.2.5.8, 2.5.23",2,null,null,null,"Шеков Е.А."]
["РУТН Западной Сибири","АО \"Тюменьэнерго\"","Тюменские РС","Южное ТПО","УФО","АП-ЗС-049/16-КП","2016-10-28","","ВЛ-35 кВ Стеклозавод - Комсомольская с отпайкой на ПС Тумашово"]
["РУТН Западной Сибири","АО \"Тюменьэнерго\"","Тюменские РС","Южное ТПО","УФО","АП-ЗС-049/16-КП","2016-10-28",212,"Не устранено загрязнение изоляторов на опорах №№ 263/1,263/2,263/3","СО 34.20.504-94, \nп. 3.2.4",2,null,null,null,"Шеков Е.А."]
["РУТН Западной Сибири","АО \"Тюменьэнерго\"","Тюменские РС","Южное ТПО","УФО","АП-ЗС-049/16-КП","2016-10-28",213,"Не убрана стоящая деревянная опора демонтированной ВЛ, расположенная в пролете  опор № 263/2 - 263/3","СО 34.20.504-94, \nп. 3.2.1",2,null,null,null,"Фадеев С.Г."]
["РУТН Западной Сибири","АО \"Тюменьэнерго\"","Тюменские РС","Южное ТПО","УФО","АП-ЗС-049/16-КП","2016-10-28",214,"Отсутствует табличка с диспетчерским наименованием на оборудовании ВОЛС, смонтированном на опоре № 263","Положение о присвоении диспетчерских наименований …. АО \"Тюменьэнерго\" ПО-ИА-40.13.11.140-3-25/1-17-2013, п. 13.2.12",2,null,null,"+","Фадеев С.Г."]
["РУТН Западной Сибири","АО \"Тюменьэнерго\"","Тюменские РС","Южное ТПО","УФО","АП-ЗС-049/16-КП","2016-10-28",215,"Не произведен ремонт верхней траверсы на опоре № 263; левой нижней на опоре № 180 (погнуты уголки)","СО 34.20.504-94, \nп. 3.2.2",2,null,null,null,"Фадеев С.Г."]
["РУТН Западной Сибири","АО \"Тюменьэнерго\"","Тюменские РС","Южное ТПО","УФО","АП-ЗС-049/16-КП","2016-10-28",216,"Не произведен инструментальный замер наклона опор № 215,216,217,220,232,162,151,130,99 (отклонение от вертикали)","СО 34.20.504-94,\nп.п.4.5.1.4, 5.3.4, т. 4.4,\nт. 5.1.,\nПУЭ,\nп.2.5.8.,\nПТЭ,\nп.1.1.7",2,null,null,null,"Фадеев С.Г."]
["РУТН Западной Сибири","АО \"Тюменьэнерго\"","Тюменские РС","Южное ТПО","УФО","АП-ЗС-049/16-КП","2016-10-28",217,"Размещено не проектное устройство грозозащиты (искровые промежутки) на опоре № 1 отпайки на ПС Тумашово (повреждено ржавчиной, механические повреждения по верхнему проводу)","СО 34.20.504-94, \nп. 3.2.2",2,null,null,null,"Фадеев С.Г."]
["РУТН Западной Сибири","АО \"Тюменьэнерго\"","Тюменские РС","Южное ТПО","УФО","АП-ЗС-049/16-КП","2016-10-28",218,"Не произведен ремонт фундамента (сваи) на опоре № 1 (сколы, видимость арматуры)","СО 34.20.504-94, \nп. 3.2.2",2,null,null,"+","Фадеев С.Г."]
["РУТН Западной Сибири","АО \"Тюменьэнерго\"","Тюменские РС","Южное ТПО","УФО","АП-ЗС-049/16-КП","2016-10-28","","ВЛ-110 кВ Заводоуковск - Боровинка с отпайкой на ПС Полевая"]
["РУТН Западной Сибири","АО \"Тюменьэнерго\"","Тюменские РС","Южное ТПО","УФО","АП-ЗС-049/16-КП","2016-10-28",219,"Не обновлен постоянный знак с наименованием ВЛ, номером опоры и знаки безопасности на опорах № 2,3,4,9А,175,173","ПТЭ,\nп.5.7.12.,\nСО 34.20.504-94,\nп.п.3.2.2, 4.5.1.2.,\nПУЭ,\nп.п.2.5.8, 2.5.23",2,null,null,"+","Шеков Е.А."]
["РУТН Западной Сибири","АО \"Тюменьэнерго\"","Тюменские РС","Южное ТПО","УФО","АП-ЗС-049/16-КП","2016-10-28",220,"Не обеспечена нормативная ширина просеки в пролетах опор № 1 - 2","СО 34.20.504-94, \nп. 3.2.1",2,null,null,null,"Фадеев С.Г."]
["РУТН Западной Сибири","АО \"Тюменьэнерго\"","Тюменские РС","Южное ТПО","УФО","АП-ЗС-049/16-КП","2016-10-28",221,"Не выполнено двойное крепление проводов на опорах №№ 3 - 4; 46 - 47; 9 - 10 отпайки на ПС Полевая (пересечение с а/д Федерального значения)","ПУЭ,                                       п. 2.5.256, 2.5.257",2,null,null,null,"Фадеев С.Г."]
["РУТН Западной Сибири","АО \"Тюменьэнерго\"","Тюменские РС","Южное ТПО","УФО","АП-ЗС-049/16-КП","2016-10-28",222,"Не произведен инструментальный замер наклона опор № 7,44,48,51,8 отпайки на ПС Полевая,168,149 (отклонение от вертикали)","СО 34.20.504-94,\nп.п.4.5.1.4, 5.3.4, т. 4.4,\nт. 5.1.,\nПУЭ,\nп.2.5.8.,\nПТЭ,\nп.1.1.7",2,null,null,null,"Фадеев С.Г."]
["РУТН Западной Сибири","АО \"Тюменьэнерго\"","Тюменские РС","Южное ТПО","УФО","АП-ЗС-049/16-КП","2016-10-28",223,"Не произведен ремонт правой нижней траверсы на опоре № 12 отпайки на ПС Полевая (погнуты уголки)","СО 34.20.504-94, \nп. 3.2.2",2,null,null,null,"Фадеев С.Г."]
["РУТН Западной Сибири","АО \"Тюменьэнерго\"","Тюменские РС","Южное ТПО","УФО","АП-ЗС-049/16-КП","2016-10-28",224,"Отсутствуют вторые недостающие гайки на болтах (шпильках), крепящих опору № 173 к фундаменту","СНиП 3.05.06-85,\nп. 3.134",2,null,null,null,"Фадеев С.Г."]
["РУТН Западной Сибири","АО \"Тюменьэнерго\"","Тюменские РС","Южное ТПО","УФО","АП-ЗС-049/16-КП","2016-10-28",225,"Не произведена вырубка деревьев и кустарников в пролетах опор № 172 - 174 (высота ДКР более 4-х метров)","СО 34.20.504-94, \nп. 3.2.1",2,null,null,null,"Фадеев С.Г."]
["РУТН Западной Сибири","АО \"Тюменьэнерго\"","Тюменские РС","Южное ТПО","УФО","АП-ЗС-049/16-КП","2016-10-28","","ВЛ-110 кВ Юрга - Плетнево"]
["РУТН Западной Сибири","АО \"Тюменьэнерго\"","Тюменские РС","Южное ТПО","УФО","АП-ЗС-049/16-КП","2016-10-28",226,"Не произведен инструментальный замер наклона опоры № 8 (отклонение от вертикали) (далее участок Юрга - Шипаково)","СО 34.20.504-94,\nп.п.4.5.1.4, 5.3.4, т. 4.4,\nт. 5.1.,\nПУЭ,\nп.2.5.8.,\nПТЭ,\nп.1.1.7",2,null,null,null,"Фадеев С.Г."]
["РУТН Западной Сибири","АО \"Тюменьэнерго\"","Тюменские РС","Южное ТПО","УФО","АП-ЗС-049/16-КП","2016-10-28",227,"Не произведена вырубка деревьев и кустарников в пролетах опор № 58 - 59 (высота ДКР более 4-х метров)","СО 34.20.504-94, \nп. 3.2.1",2,null,null,null,"Фадеев С.Г."]
["РУТН Западной Сибири","АО \"Тюменьэнерго\"","Тюменские РС","Южное ТПО","УФО","АП-ЗС-049/16-КП","2016-10-28",228,"Не устранено отклонение изолирующей поддерживающей подвески на нижнем левом проводе от проектного положения сверх допустимого значения на опоре № 28","СО 34.20.504-94, \nп. 3.2.4",2,null,null,null,"Фадеев С.Г."]
["РУТН Западной Сибири","АО \"Тюменьэнерго\"","Тюменские РС","Южное ТПО","УФО","АП-ЗС-049/16-КП","2016-10-28",229,"В пролете опор № 3 - 4 размещены не проектные строения (далее участок Шипаково - Плетнево)","Постановление правительства РФ №160,\nп. 8 (б).,\nСО 34.20.504-94,\nп. 3.2.1",2,null,null,null,"Фадеев С.Г."]
["РУТН Западной Сибири","АО \"Тюменьэнерго\"","Тюменские РС","Южное ТПО","УФО","АП-ЗС-049/16-КП","2016-10-28",230,"Не произведен инструментальный замер наклона опор № 17,101,122,123,113 (отклонение от вертикали)","СО 34.20.504-94,\nп.п.4.5.1.4, 5.3.4, т. 4.4,\nт. 5.1.,\nПУЭ,\nп.2.5.8.,\nПТЭ,\nп.1.1.7",2,null,null,null,"Фадеев С.Г."]
["РУТН Западной Сибири","АО \"Тюменьэнерго\"","Тюменские РС","Южное ТПО","УФО","АП-ЗС-049/16-КП","2016-10-28",231,"Не произведена вырубка деревьев и кустарников в пролетах опор № 17 - 18 (высота ДКР более 4-х метров)","СО 34.20.504-94, \nп. 3.2.1",2,null,null,null,"Фадеев С.Г."]
["РУТН Западной Сибири","АО \"Тюменьэнерго\"","Тюменские РС","Южное ТПО","УФО","АП-ЗС-049/16-КП","2016-10-28",232,"Не обновлен постоянный знак с наименованием ВЛ, номером опоры и знаки безопасности на опорах № 18,149","ПТЭ,\nп.5.7.12.,\nСО 34.20.504-94.,\nп.п.3.2.2, 4.5.1.2.,\nПУЭ,\nп.п.2.5.8, 2.5.23",2,null,null,"+","Шеков Е.А."]
["РУТН Западной Сибири","АО \"Тюменьэнерго\"","Тюменские РС","Южное ТПО","УФО","АП-ЗС-049/16-КП","2016-10-28",233,"Не произведен ремонт фундамента (сваи) на опоре № 149 (сколы, видимость арматуры)","СО 34.20.504-94, \nп. 3.2.2",2,null,null,"+","Фадеев С.Г."]
["РУТН Западной Сибири","АО \"Тюменьэнерго\"","Тюменские РС","Южное ТПО","УФО","АП-ЗС-049/16-КП","2016-10-28","","ВЛ-110 кВ Заводоуковск - Пятково с отпайкой на ПС Озерки"]
["РУТН Западной Сибири","АО \"Тюменьэнерго\"","Тюменские РС","Южное ТПО","УФО","АП-ЗС-049/16-КП","2016-10-28",234,"Отсутствуют вторые недостающие гайки на болтах (шпильках), крепящих опору № 1  отпайки на ПС Озерки к фундаменту","СНиП 3.05.06-85,\nп. 3.134",2,null,null,null,"Фадеев С.Г."]
["РУТН Западной Сибири","АО \"Тюменьэнерго\"","Тюменские РС","Южное ТПО","УФО","АП-ЗС-049/16-КП","2016-10-28",235,"Не произведен инструментальный замер наклона опор № 86,97 (отклонение от вертикали) (далее участок Заводоуковск - Дроново)","СО 34.20.504-94,\nп.п.4.5.1.4, 5.3.4, т. 4.4,\nт. 5.1.,\nПУЭ.,\nп.2.5.8.,\nПТЭ,\nп.1.1.7",2,null,null,null,"Фадеев С.Г."]
["РУТН Западной Сибири","АО \"Тюменьэнерго\"","Тюменские РС","Южное ТПО","УФО","АП-ЗС-049/16-КП","2016-10-28",236,"Не устранено загрязнение изоляторов на опоре № 96","СО 34.20.504-94, \nп. 3.2.4",2,null,null,null,"Фадеев С.Г."]
["РУТН Западной Сибири","АО \"Тюменьэнерго\"","Тюменские РС","Южное ТПО","УФО","АП-ЗС-049/16-КП","2016-10-28",237,"Не произведен ремонт фундамента (сваи) на опоре № 98 (сколы, видимость арматуры)","СО 34.20.504-94, \nп. 3.2.2",2,null,null,null,"Фадеев С.Г."]
["РУТН Западной Сибири","АО \"Тюменьэнерго\"","Тюменские РС","Южное ТПО","УФО","АП-ЗС-049/16-КП","2016-10-28",238,"Имеется сквозная трещина (10 см.) в основании железо-бетонной опоры № 139 (участок Дроново - Колесниково)","СО 34.20.504-94, \nп. 3.2.2",2,null,null,null,"Фадеев С.Г."]
["РУТН Западной Сибири","АО \"Тюменьэнерго\"","Тюменские РС","Южное ТПО","УФО","АП-ЗС-049/16-КП","2016-10-28",239,"Не обновлен постоянный знак с наименованием ВЛ, номером опоры и знаки безопасности на опоре № 14 (далее участок Колесниково - Пятково) ","ПТЭ,\nп.5.7.12.,\nСО 34.20.504-94,\nп.п.3.2.2, 4.5.1.2.,\nПУЭ,\nп.п.2.5.8, 2.5.23",2,null,null,null,"Фадеев С.Г."]
["РУТН Западной Сибири","АО \"Тюменьэнерго\"","Тюменские РС","Южное ТПО","УФО","АП-ЗС-049/16-КП","2016-10-28",240,"Не произведен инструментальный замер наклона опор № 5, 6, 7, 9, 13, 19, 20, 55, 72, 76, 73, 74, 77 (отклонение от вертикали)","СО 34.20.504-94,\nп.п.4.5.1.4, 5.3.4, т. 4.4,\nт. 5.1.,\nПУЭ,\nп.2.5.8.,\nПТЭ,\nп.1.1.7",2,null,null,null,"Фадеев С.Г."]
["РУТН Западной Сибири","АО \"Тюменьэнерго\"","Тюменские РС","Южное ТПО","УФО","АП-ЗС-049/16-КП","2016-10-28",241,"Не произведена вырубка деревьев и кустарников в пролетах опор № 15 - 16; 64 - 65 (высота ДКР более 4-х метров)","СО 34.20.504-94, \nп. 3.2.1",2,null,null,null,"Фадеев С.Г."]
["РУТН Западной Сибири","АО \"Тюменьэнерго\"","Тюменские РС","Южное ТПО","УФО","АП-ЗС-049/16-КП","2016-10-28",242,"Не устранено отклонение изолирующей поддерживающей подвески на нижнем левом проводе от проектного положения сверх допустимого значения на опоре № 5","СО 34.20.504-94, \nп. 3.2.4",2,null,null,null,"Фадеев С.Г."]
["РУТН Западной Сибири","АО \"Тюменьэнерго\"","Тюменские РС","Южное ТПО","УФО","АП-ЗС-049/16-КП","2016-10-28",243,"Отсутствует смазка оттяжки опор № 36, 70","СО 34.20.504-94, \nп. 3.2.2",2,null,null,null,"Фадеев С.Г."]
["РУТН Западной Сибири","АО \"Тюменьэнерго\"","Тюменские РС","Южное ТПО","УФО","АП-ЗС-049/16-КП","2016-10-28",244,"Имеется сквозная трещина (10 см.) в основании железо-бетонной опоры № 70","СО 34.20.504-94, \nп. 3.2.2",2,null,null,null,"Фадеев С.Г."]
["РУТН Западной Сибири","АО \"Тюменьэнерго\"","Тюменские РС","Южное ТПО","УФО","АП-ЗС-049/16-КП","2016-10-28",245,"Не устранено ослабление болтовых соединений опоры № 112 к фундаменту","СО 34.20.504-94, \nп. 3.2.2",2,null,null,null,"Фадеев С.Г."]
["РУТН Западной Сибири","АО \"Тюменьэнерго\"","Тюменские РС","Южное ТПО","УФО","АП-ЗС-049/16-КП","2016-10-28","","ВЛ-110 кВ Пятково - Буньково"]
["РУТН Западной Сибири","АО \"Тюменьэнерго\"","Тюменские РС","Южное ТПО","УФО","АП-ЗС-049/16-КП","2016-10-28",246,"Не произведена вырубка деревьев и кустарников в пролетах опор № 4 - 5; 47 - 48; 50 - 51 (высота ДКР более 4-х метров) (далее участок Пятково - Емуртла)","СО 34.20.504-94, \nп. 3.2.1",2,null,null,null,"Фадеев С.Г."]
["РУТН Западной Сибири","АО \"Тюменьэнерго\"","Тюменские РС","Южное ТПО","УФО","АП-ЗС-049/16-КП","2016-10-28",247,"Не обеспечена нормативная ширина просеки в пролетах опор №№ 10 - 12; 19 - 20; 1 - 3 участка Емуртла - Буньково","СО 34.20.504-94, \nп. 3.2.1",2,null,null,null,"Фадеев С.Г."]
["РУТН Западной Сибири","АО \"Тюменьэнерго\"","Тюменские РС","Южное ТПО","УФО","АП-ЗС-049/16-КП","2016-10-28",248,"Отсутствует смазка оттяжки опоры № 14","СО 34.20.504-94, \nп. 3.2.2",2,null,null,null,"Фадеев С.Г."]
["РУТН Западной Сибири","АО \"Тюменьэнерго\"","Тюменские РС","Южное ТПО","УФО","АП-ЗС-049/16-КП","2016-10-28",249,"Не вырублена ДКР в пределах площади опоры № 14","СО 34.20.504-94, \nп. 3.2.1",2,null,null,null,"Фадеев С.Г."]
["РУТН Западной Сибири","АО \"Тюменьэнерго\"","Тюменские РС","Южное ТПО","УФО","АП-ЗС-049/16-КП","2016-10-28",250,"Не устранено загрязнение изоляторов на опоре № 66","СО 34.20.504-94, \nп. 3.2.4",2,null,null,null,"Фадеев С.Г."]
["РУТН Западной Сибири","АО \"Тюменьэнерго\"","Тюменские РС","Южное ТПО","УФО","АП-ЗС-049/16-КП","2016-10-28",251,"Не устранено ослабление болтовых соединений опоры № 111 к фундаменту (далее участок Емуртла - Буньково)","СО 34.20.504-94, \nп. 3.2.2",2,null,null,null,"Фадеев С.Г."]
["РУТН Западной Сибири","АО \"Тюменьэнерго\"","Тюменские РС","Южное ТПО","УФО","АП-ЗС-049/16-КП","2016-10-28",252,"Диспетчерское наименование на опорах ВЛ не соответствует с установленными наименованиями в филиале инструкцией ИП 89416437-01-4-19-012-2014","Положение о присвоении диспетчерских наименований …. АО \"Тюменьэнерго\" ПО-ИА-40.13.11.140-3-25/1-17-2013, п. 13.2.12",2,null,null,null,"Фадеев С.Г."]
["РУТН Западной Сибири","АО \"Тюменьэнерго\"","Тюменские РС","Южное ТПО","УФО","АП-ЗС-049/16-КП","2016-10-28",253,"Не обновлен постоянный знак с наименованием ВЛ, номером опоры и знаки безопасности на опорах № 110, 97","ПТЭ,\nп.5.7.12.,\nСО 34.20.504-94,\nп.п.3.2.2, 4.5.1.2.,\nПУЭ,\nп.п.2.5.8, 2.5.23",2,null,null,null,"Шеков Е.А."]
["РУТН Западной Сибири","АО \"Тюменьэнерго\"","Тюменские РС","Южное ТПО","УФО","АП-ЗС-049/16-КП","2016-10-28",254,"Не установлены отбойные тумбы для защиты опоры № 104 от наезда транспорта (расположена менее 4-х метров от проезжей части автодороги)","СО 34.20.504-94, \nп. 3.2.1, 5.1.5",2,null,null,null,"Фадеев С.Г."]
["РУТН Западной Сибири","АО \"Тюменьэнерго\"","Тюменские РС","Южное ТПО","УФО","АП-ЗС-049/16-КП","2016-10-28",255,"Не произведен инструментальный замер наклона опоры № 97 (отклонение от вертикали)","СО 34.20.504-94,\nп.п.4.5.1.4, 5.3.4, т. 4.4,\nт. 5.1.,\nПУЭ,\nп.2.5.8.,\nПТЭ,\nп.1.1.7",2,null,null,null,"Фадеев С.Г."]
["РУТН Западной Сибири","АО \"Тюменьэнерго\"","Тюменские РС","Южное ТПО","УФО","АП-ЗС-049/16-КП","2016-10-28",256,"Не произведена вырубка деревьев и кустарников в пролете опор № 101 - 103; 83 - 84 (высота ДКР более 4-х метров)","СО 34.20.504-94, \nп. 3.2.1",2,null,null,null,"Фадеев С.Г."]
["РУТН Западной Сибири","АО \"Тюменьэнерго\"","Тюменские РС","Южное ТПО","УФО","АП-ЗС-049/16-КП","2016-10-28",257,"Отсутствует смазка оттяжки опор № 107,101,94","СО 34.20.504-94, \nп. 3.2.2",2,null,null,null,"Фадеев С.Г."]
["РУТН Западной Сибири","АО \"Тюменьэнерго\"","Тюменские РС","Южное ТПО","УФО","АП-ЗС-049/16-КП","2016-10-28",258,"Не обновлена расцветка фаз на опоре № 111","ПТЭ,\nп.5.7.12.,\n РД 34.20.504-94,\nп.п.3.2.2, 4.5.1.2.,\nПУЭ,\nп.п.2.5.8, 2.5.23",2,null,null,null,"Шеков Е.А."]
["РУТН Западной Сибири","АО \"Тюменьэнерго\"","Тюменские РС","Южное ТПО","УФО","АП-ЗС-049/16-КП","2016-10-28","","ВЛ-110 кВ Пятково - Армизон"]
["РУТН Западной Сибири","АО \"Тюменьэнерго\"","Тюменские РС","Южное ТПО","УФО","АП-ЗС-049/16-КП","2016-10-28",259,"Не обеспечена нормативная ширина просеки в пролетах опор №№ 9 - 10; 72 - 78; 138 - 146; 153 - 158 (далее участок Пятково - Раздолье)","СО 34.20.504-94, \nп. 3.2.1",2,null,null,null,"Фадеев С.Г."]
["РУТН Западной Сибири","АО \"Тюменьэнерго\"","Тюменские РС","Южное ТПО","УФО","АП-ЗС-049/16-КП","2016-10-28",260,"Не произведен инструментальный замер наклона опор № 5,49,79,76 (отклонение от вертикали)","СО 34.20.504-94,\nп.п.4.5.1.4, 5.3.4, т. 4.4,\nт. 5.1.,\nПУЭ,\nп.2.5.8.,\nПТЭ,\nп.1.1.7",2,null,null,null,"Фадеев С.Г."]
["РУТН Западной Сибири","АО \"Тюменьэнерго\"","Тюменские РС","Южное ТПО","УФО","АП-ЗС-049/16-КП","2016-10-28",261,"Отсутствует смазка оттяжки опоры № 25","СО 34.20.504-94, \nп. 3.2.2",2,null,null,null,"Фадеев С.Г."]
["РУТН Западной Сибири","АО \"Тюменьэнерго\"","Тюменские РС","Южное ТПО","УФО","АП-ЗС-049/16-КП","2016-10-28",262,"Не произведена вырубка деревьев и кустарников в пролетах опор № 52 - 53 (высота ДКР более 4-х метров)","СО 34.20.504-94, \nп. 3.2.1",2,null,null,null,"Фадеев С.Г."]
["РУТН Западной Сибири","АО \"Тюменьэнерго\"","Тюменские РС","Южное ТПО","УФО","АП-ЗС-049/16-КП","2016-10-28",263,"Не выполнена очистка просеки от порубочных остатков ДКР в районе опоры № 25","СО 34.20.504-94,\nп. 5.1.5 (а).,\nВППБ 27-14,\nп.п.5.8.8, 5.8.10",2,null,null,null,"Фадеев С.Г."]
["РУТН Западной Сибири","АО \"Тюменьэнерго\"","Тюменские РС","Южное ТПО","УФО","АП-ЗС-049/16-КП","2016-10-28",264,"Не обеспечена нормативная ширина просеки в пролетах опор №№ 5 - 6; 143 - 145 (далее участок Раздолье - Армизон)","СО 34.20.504-94, \nп. 3.2.1",2,null,null,null,"Фадеев С.Г."]
["РУТН Западной Сибири","АО \"Тюменьэнерго\"","Тюменские РС","Южное ТПО","УФО","АП-ЗС-049/16-КП","2016-10-28",265,"Не произведен ремонт нижней траверсы на опоре № 2 (погнуты уголки)","СО 34.20.504-94, \nп. 3.2.2",2,null,null,null,"Фадеев С.Г."]
["РУТН Западной Сибири","АО \"Тюменьэнерго\"","Тюменские РС","Южное ТПО","УФО","АП-ЗС-049/16-КП","2016-10-28",266,"Отсутствует смазка оттяжки опор № 80,145","СО 34.20.504-94, \nп. 3.2.2",2,null,null,null,"Фадеев С.Г."]
["РУТН Западной Сибири","АО \"Тюменьэнерго\"","Тюменские РС","Южное ТПО","УФО","АП-ЗС-049/16-КП","2016-10-28",267,"Не произведен инструментальный замер наклона опор № 83,104,127,156 (отклонение от вертикали)","СО 34.20.504-94,\nп.п.4.5.1.4, 5.3.4, т. 4.4,\nт. 5.1.,\nПУЭ,\nп.2.5.8.,\nПТЭ,\nп.1.1.7",2,null,null,null,"Фадеев С.Г."]
["РУТН Западной Сибири","АО \"Тюменьэнерго\"","Тюменские РС","Южное ТПО","УФО","АП-ЗС-049/16-КП","2016-10-28",268,"Не обновлен постоянный знак с наименованием ВЛ, номером опоры и знаки безопасности на опорах № 177 - 183","ПТЭ,\nп.5.7.12.,\nСО 34.20.504-94,\nп.п.3.2.2, 4.5.1.2.,\nПУЭ,\nп.п.2.5.8, 2.5.23",2,null,null,null,"Фадеев С.Г."]
["РУТН Западной Сибири","АО \"Тюменьэнерго\"","Тюменские РС","Южное ТПО","УФО","АП-ЗС-049/16-КП","2016-10-28","","Общее по СЭиР ВЛ"]
["РУТН Западной Сибири","АО \"Тюменьэнерго\"","Тюменские РС","Южное ТПО","УФО","АП-ЗС-049/16-КП","2016-10-28",269,"Не своевременно вносится недостающая информация в паспорта на ВЛ-110 кВ Заводоуковск - Омутинка после проведения работ (монтаж ВОЛС, изменение наименования ВЛ, монтаж дополнительных опор, марка опор и т.д.)","СО 34.20.504-94, \nп.п. 2.2.9, 5.10.2",2,"С",null,null,"Фадеев С.Г."]
["РУТН Западной Сибири","АО \"Тюменьэнерго\"","Тюменские РС","Южное ТПО","УФО","АП-ЗС-049/16-КП","2016-10-28",270,"Отсутствует график проведения осмотров ВЛ инженерно-техническими работниками службы, осмотры в 2016 году не проводились","СО 34.20.504-94, \nп. 3.1.4",2,"С",null,null,"Фадеев С.Г."]
["РУТН Западной Сибири","АО \"Тюменьэнерго\"","Тюменские РС","Южное ТПО","УФО","АП-ЗС-049/16-КП","2016-10-28",271,"Отсутствует табель комплектования средствами малой механизации, приспособлениями, такелажным оборудованием, ручным инструментом и приборами для оснащения бригад, обслуживающих ВЛ","РД 34.20.504-94,  п.2.1.20, прил.4, п.1.4",2,"С",null,"+","Фадеев С.Г."]
["РУТН Западной Сибири","АО \"Тюменьэнерго\"","Тюменские РС","Южное ТПО","УФО","АП-ЗС-049/16-КП","2016-10-28","","Пожарная безопасность"]
["РУТН Западной Сибири","АО \"Тюменьэнерго\"","Тюменские РС","Южное ТПО","УФО","АП-ЗС-049/16-КП","2016-10-28",272,"Ограничен доступ к пожарному крану № 4, расположенному в коридоре первого этажа АБК Упоровского РЭС (УРЭС) (проведено изменение объемно-планировочного решения - не проектная перегородка)","ВППБ 27-14, п. 5.1.5",12,null,null,null,"Фадеев С.Г."]
["РУТН Западной Сибири","АО \"Тюменьэнерго\"","Тюменские РС","Южное ТПО","УФО","АП-ЗС-049/16-КП","2016-10-28",273,"Не произведен ремонт автоматической пожарной сигнализации на объектах УРЭС. Контрольный прибор АПС размещен в месте без круглосуточного пребывания людей","ВНПБ 28-14, п. 3.2, 13.1.,\nППР в РФ, п.п. 61, 63",12,null,"Б",null,"Фадеев С.Г."]
["РУТН Западной Сибири","АО \"Тюменьэнерго\"","Тюменские РС","Южное ТПО","УФО","АП-ЗС-049/16-КП","2016-10-28",274,"Не проведено техническое освидетельствование (акт) всего оборудования автоматической пожарной сигнализации и пожаротушения на объектах ЮТПО, где данное оборудование было смонтировано более 5 лет (тепловые пожарные извещатели устаревшие, сильно загрязнены, контрольные приборы с истекшим сроком эксплуатации и т.д.)","ВППБ 27-14, п. 3.1.1.,     ВНПБ 28-14, п. 3.3.,               РД 25.964-90, п. 1.1.9., \nРД 009-02-96, п. 1.10., ППР в РФ. п.п. 61, 63",12,"С",null,null,"Фадеев С.Г."]
["РУТН Западной Сибири","АО \"Тюменьэнерго\"","Тюменские РС","Южное ТПО","УФО","АП-ЗС-049/16-КП","2016-10-28",275,"Не убрано ветхое деревянное строение из противопожарного разрыва от склада на территории УРЭС ","ВППБ 27-14, п. 4.3",12,null,null,null,"Фадеев С.Г."]
["РУТН Западной Сибири","АО \"Тюменьэнерго\"","Тюменские РС","Южное ТПО","УФО","АП-ЗС-049/16-КП","2016-10-28",276,"Не произведен ремонт ограждения территории базы УРЭС, ОРЭС и ЯРЭС (ветхое из дерева)","ВППБ 27-14, п. 4.4",12,null,null,null,"Фадеев С.Г."]
["РУТН Западной Сибири","АО \"Тюменьэнерго\"","Тюменские РС","Южное ТПО","УФО","АП-ЗС-049/16-КП","2016-10-28",277,"Не дооборудованы рабочие места персонала, ведущего дежурство на объектах ЮТПО в ночную и дневную смену средствами индивидуальной защиты органов дыхания и зрения человека от токсичных продуктов горения (фильтрующих или изолирующих самоспасателей, противогазов и т.п.)","ВППБ 27-14, п. 5.1.34",12,null,"Б",null,"Фадеев С.Г."]
["РУТН Западной Сибири","АО \"Тюменьэнерго\"","Тюменские РС","Южное ТПО","УФО","АП-ЗС-049/16-КП","2016-10-28",278,"Не разработаны оперативные карточки действий персонала при пожаре (ОКДПП) на склады площадью более 300 метров квадратных и склады нефти и нефтепродуктов ЮТПО","ВППБ 27-14, приложение 11, п. 1.2",12,null,null,null,"Фадеев С.Г."]
["РУТН Западной Сибири","АО \"Тюменьэнерго\"","Тюменские РС","Южное ТПО","УФО","АП-ЗС-049/16-КП","2016-10-28",279,"Не согласованы в УРЭС оперативные карточки  действий персонала при пожаре (ОКДПП) № 3 (ПС Упорово), № 6,7,8,9 (ПС Пятково) с соответствующим органом диспетчерского управления (ОДС)","ВППБ 27-14, приложение 11, п. 1.17",12,null,null,null,"Фадеев С.Г."]
["РУТН Западной Сибири","АО \"Тюменьэнерго\"","Тюменские РС","Южное ТПО","УФО","АП-ЗС-049/16-КП","2016-10-28",280,"Используются  светильники со снятыми колпаками (рассеивателями), предусмотренными конструкцией светильника в гараже (боксе № 3) Ялуторовского РЭС (ЯРЭС)","ППР в РФ, п. 42«в»\n",12,null,null,null,"Фадеев С.Г."]
["РУТН Западной Сибири","АО \"Тюменьэнерго\"","Тюменские РС","Южное ТПО","УФО","АП-ЗС-049/16-КП","2016-10-28",281,"Не оборудованы рабочие места персонала, которые расположены в офисных помещениях административных и административно-бытовых зданий высотой более 2-х этажей фильтрующими самоспасателями для защиты органов дыхания и зрения","ВППБ 27-14, п. 16.6",12,null,"Б",null,"Фадеев С.Г."]
["РУТН Западной Сибири","АО \"Тюменьэнерго\"","Тюменские РС","Южное ТПО","УФО","АП-ЗС-049/16-КП","2016-10-28",282,"Не соблюдается противопожарный режим для обеспечения нормальных и безопасных условий труда персонала в столярном цехе ЯРЭС (хранятся баллоны, емкости с ГЖ и другие материалы, не имеющие отношение к цеху)","ВППБ 27-14, п. 5.1.1",12,null,null,"+","Фадеев С.Г."]
["РУТН Западной Сибири","АО \"Тюменьэнерго\"","Тюменские РС","Южное ТПО","УФО","АП-ЗС-049/16-КП","2016-10-28",283,"На окнах служебных помещений РЗА в ЯРЭС; первого этажа АБК Омутинского РЭС (ОРЭС) и бытовых помещений центрального склада установлены глухие металлические решетки","ВППБ 27-14, п. 5.1.24",12,null,null,null,"Фадеев С.Г."]
["РУТН Западной Сибири","АО \"Тюменьэнерго\"","Тюменские РС","Южное ТПО","УФО","АП-ЗС-049/16-КП","2016-10-28",284,"Не заменены деревянные двери, установленные в дверных проемах кладовых для хранения горючих материалов, архива ЮТПО, электрощитовых, вентиляционных камер и других пожароопасных технических помещений зданий ЮТПО на двери с пределом огнестойкости не менее 0.6 часа","ВППБ 27-14,\nп. 1.1, 3.1.1.,\nСНиП 2.08.02-89*,\nп. 1.82\n",12,null,null,null,"Фадеев С.Г."]
["РУТН Западной Сибири","АО \"Тюменьэнерго\"","Тюменские РС","Южное ТПО","УФО","АП-ЗС-049/16-КП","2016-10-28",285,"Запоры на дверях запасных эвакуационных выходов с первого и второго этажей АБК ЗРЭС не обеспечивают людям, находящимся внутри здания, возможность свободного открывания их изнутри без ключа","ВППБ 27-14,\nп. 5.1.28",12,null,"Б",null,"Фадеев С.Г."]
["РУТН Западной Сибири","АО \"Тюменьэнерго\"","Тюменские РС","Южное ТПО","УФО","АП-ЗС-049/16-КП","2016-10-28",286,"Не произведен ремонт автоматической пожарной сигнализации на объектах базы филиала (г. Заводоуковск): АБК ЗРЭС, боксы гаражей № 2,4 ","ВНПБ 28-14, п.п. 3.2, 13.1.,\n ППР в РФ, п. 61,63",12,null,"Б",null,"Фадеев С.Г."]
["РУТН Западной Сибири","АО \"Тюменьэнерго\"","Тюменские РС","Южное ТПО","УФО","АП-ЗС-049/16-КП","2016-10-28",287,"Укладка рукавов в кассеты пожарных кранов в АБК ЮТПО, АБК ЗРЭС и ЦРО выполнена без учета требований настоящего Стандарта","ВППБ 27-14, приложение 17,\nп. 4.3.12",12,null,null,"+","Фадеев С.Г."]
["РУТН Западной Сибири","АО \"Тюменьэнерго\"","Тюменские РС","Южное ТПО","УФО","АП-ЗС-049/16-КП","2016-10-28",288,"В общем боксе гаража № 2 на базе ЮТПО допущена стоянка специальной техники, предназначенной для перевозки горючей жидкости","ВППБ 27-14,\nп. 7.2",12,null,null,"+","Фадеев С.Г."]
["РУТН Западной Сибири","АО \"Тюменьэнерго\"","Тюменские РС","Южное ТПО","УФО","АП-ЗС-049/16-КП","2016-10-28",289,"Не произведен ремонт автоматической пожарной сигнализации в здании РДП и резервного источника питания электроэнергии приборов АПС на КПП ЮРЭС","ВНПБ 28-14, п. п.3.2, 13.1.,\nППР в РФ, п.п. 61, 63",12,null,"Б",null,"Фадеев С.Г."]
["РУТН Западной Сибири","АО \"Тюменьэнерго\"","Тюменские РС","Южное ТПО","УФО","АП-ЗС-049/16-КП","2016-10-28",290,"Отсутствует автоматическая пожарная сигнализация в помещениях гаража № 4, бытовых помещениях ЗРЭС и мастеров РС (здание лаборатории)","ВНПБ 28-14, п. 3.5, приложение 1",12,null,null,null,"Фадеев С.Г."]
["РУТН Западной Сибири","АО \"Тюменьэнерго\"","Тюменские РС","Южное ТПО","УФО","АП-ЗС-049/16-КП","2016-10-28","","ЦРО"]
["РУТН Западной Сибири","АО \"Тюменьэнерго\"","Тюменские РС","Южное ТПО","УФО","АП-ЗС-049/16-КП","2016-10-28",291,"Отсутствует нумерация запорной арматуры, емкостей маслохозяйства","ПТЭ, п.1.7.4",7,null,null,null,"Шеков Е.А."]
["РУТН Западной Сибири","АО \"Тюменьэнерго\"","Тюменские РС","Южное ТПО","УФО","АП-ЗС-049/16-КП","2016-10-28",292,"Воздухоосушительные фильтры резервуаров хранения масла ЦРО не оснащены индикаторным силикагелем","ПТЭ, п.5.14.8.,\nСО 15 -34.43.105-89 п.12.4.1",7,null,null,null,"Шеков Е.А."]
["РУТН Западной Сибири","АО \"Тюменьэнерго\"","Тюменские РС","Южное ТПО","УФО","АП-ЗС-049/16-КП","2016-10-28","","Оперативно-технологическое управление. Общие замечания."]
["РУТН Западной Сибири","АО \"Тюменьэнерго\"","Тюменские РС","Южное ТПО","УФО","АП-ЗС-049/16-КП","2016-10-28",293,"Не правомерно ОРД Южного ТПО дает право диспетчерам (ОДС, ОДГ) выдачи нарядов и распоряжений ","ПОТЭЭ,                                 п.5.4",8,"С","А",null,"Карпухин В.В."]
["РУТН Западной Сибири","АО \"Тюменьэнерго\"","Тюменские РС","Южное ТПО","УФО","АП-ЗС-049/16-КП","2016-10-28",294,"Не правильно определен перечень ответственных лиц под руководством и по разрешению которых выполняется деблокирование ЭМБ (руководство осуществляют ст. мастера РЭС, гл. инженера, а разрешение на деблокирование во всех случаях выдает диспетчер ОДС, ОДГ согласно подведомственности оборудования)","ПТЭ, п. 6.8.12.,                  РД 34.35.512, радел 3.3, п.3.,                                            СО 153-34.20.505-2003)\nп.п. 2.3.2, 3.4.6\n",10,"С","Б","+","Карпухин В.В."]
["РУТН Западной Сибири","АО \"Тюменьэнерго\"","Тюменские РС","Южное ТПО","УФО","АП-ЗС-049/16-КП","2016-10-28",295,"Не включена в перечень НТД на рабочем месте диспетчера ОДС и отсутствует следующая документация:\n- перечень сложных переключений, выполняемых по программам\n(типовым программам) переключений оперативным персоналом ОДС; \n- инструкции по обслуживанию (эксплуатации) установок пожарной сигнализации;\n- инструкции о мерах пожарной безопасности при проведении огневых работ;\n- перечня диспетчерских наименований по воздушным линиям в зоне ответственности диспетчера ОДС.","СТО 59012820.29.020.005-2011, п. 4.1.6.,                        СО 34.03.301-00,\nп.п. 3.1, 3.2, 3.8, 3.9\n\n",10,"С",null,"+","Карпухин В.В."]
["РУТН Западной Сибири","АО \"Тюменьэнерго\"","Тюменские РС","Южное ТПО","УФО","АП-ЗС-049/16-КП","2016-10-28",296,"Отсутствует ОРД предприятия, определяющего количество одновременно работающих трансформаторов для каждой ПС в зависимости от графика нагрузки с учетом надежности питания потребителей и минимума потерь энергии (во время проверки выведены из работы трансформаторы на ПС Упорово, Колос, Атьялово)","ПТЭ,\n п.5.3.19",10,"С",null,null,"Карпухин В.В."]
["РУТН Западной Сибири","АО \"Тюменьэнерго\"","Тюменские РС","Южное ТПО","УФО","АП-ЗС-049/16-КП","2016-10-28",297,"Отсутствуют заявки на выведенное в ремонт оборудования:\n- выведена из работы ДФЗ-201 ВЛ 110 кВ Княжево-Богандинка, введены ОУ РЗ (в ремонте с 13.03.2013);\n- ПС 110 кВ Пятково - выедена АРЛ В 110 кВ Армизон (в ремонте с 29.01.2014);\n- ПС 110 кВ Упорово - 2Т на хх (с 26.08.2016);\n- ПС  110 кВ Колос- 2Т на хх, 2С 10 кВ запитана от ВЛ 10 кВ Связь (с 09.09.2019);\n- ПС 110 кВ Атьялово - 1Т на хх (с 07.03.2013) (заявок у ОДС нет).","ПТЭ\nп.п. 6.4.1-6.4.11\n",10,"С",null,"+","Карпухин В.В."]
["РУТН Западной Сибири","АО \"Тюменьэнерго\"","Тюменские РС","Южное ТПО","УФО","АП-ЗС-049/16-КП","2016-10-28",298,"Отсутствует перечень ЛЭП, оборудования и устройств РЗА, типовые бланки (программы) переключений на вывод в ремонт (ввод в работу) которых должны быть согласованы с соседним диспетчерским центром и включен в состав инструкции по производству переключений в электроустановках операционной зоны ДЦ в качестве отдельных приложения  ","СТО 59012820.29.020.005-2011,\nп.п.4.1.2-4.1.4, 4.4.12, 4.4.16., ПТЭ, п.6.1.4\n",10,"С",null,"+","Карпухин В.В."]
["РУТН Западной Сибири","АО \"Тюменьэнерго\"","Тюменские РС","Южное ТПО","УФО","АП-ЗС-049/16-КП","2016-10-28",299,"Отсутствует в местной инструкции по предотвращению и ликвидации технологических нарушений на объектах электросетевого хозяйства ТПО:\n- подробное описание действий персонала при срабатывании основных и резервных защит линий электропередачи и оборудования ПС, в том числе газового реле на сигнал, потере защит","ПТЭ,\nп.п. 6.3.9, 6.3.10, 6.5.2, 6.5.3.,\nСО 153-34.20.561-2003,\nп.п.1.2.23, 2.1.4, 2.8.3, 8.1.3.,\nСТО 17330282.29.240.004-2008, п.6",10,null,null,null,"Карпухин В.В."]
["РУТН Западной Сибири","АО \"Тюменьэнерго\"","Тюменские РС","Южное ТПО","УФО","АП-ЗС-049/16-КП","2016-10-28",300,"Выявлены недостатки перечня действий, которые может выполнять и выполнение которых недопустимо оперативному и диспетчерскому персоналу при отказе средств связи (не охватывает все оборудование ПС, разрешает включать в работу оборудование которое без включать без соответствующих разрешений запрещено, пример: силовой трансформатор при отключении от основных защит оперативному персоналу разрешено включать самостоятельно, не определяет порядок действия персонала при срабатывании газовой защиты на отключение, на сигнал, работы дуговой защиты, потери обогревов, оперативного тока и т.п.)","СО 153-34.20.505-2003 (РД 153-34.0-20.505-2001), п.8.4",10,"С",null,null,"Карпухин В.В."]
["РУТН Западной Сибири","АО \"Тюменьэнерго\"","Тюменские РС","Южное ТПО","УФО","АП-ЗС-049/16-КП","2016-10-28",301,"Не выполнено требование при оформлении программ переключений:\n- эксплуатационное состояние устройств РЗА;\n- не в полном объеме выполнено описание схем объектов с перечислением влияющих на производство переключений коммутационных аппаратов, заземляющих ножей, разъединителей с указанием их положения на момент начала переключений (состояние коммутационных аппаратов до начала переключений в том числе операции с которыми переводят нагрузку с одного трансформатора на другой)","СТО 59012820.29.020.005-2011, п.4.4.6",10,"С",null,null,"Карпухин В.В."]
["РУТН Западной Сибири","АО \"Тюменьэнерго\"","Тюменские РС","Южное ТПО","УФО","АП-ЗС-049/16-КП","2016-10-28",302,"Не выполнено требование при оформлении бланков переключения:\n- описание схемы электроустановки на момент начала переключений в части устройств РЗА, которые влияют на порядок производства переключений;           - информация о наличии наведенного напряжения (для ВЛ, КВЛ, оборудования подключенного к ним)","СТО 59012820.29.020.005-2011, п.4.4.6",10,"С",null,null,"Карпухин В.В."]
["РУТН Западной Сибири","АО \"Тюменьэнерго\"","Тюменские РС","Южное ТПО","УФО","АП-ЗС-049/16-КП","2016-10-28",303,"Отсутствует решения технического руководителя предприятия, определяющее режим работы устройств регулирования напряжения под нагрузкой (РПН) трансформаторов ПС – в автоматическом режиме или неавтоматический режиме, путем дистанционного переключения РПН с пульта управления, если колебания напряжения в сети находятся в пределах, удовлетворяющих требования потребителей электроэнергии ","ПТЭ, п. 5.3.6",10,"С",null,null,"Карпухин В.В."]
["РУТН Западной Сибири","АО \"Тюменьэнерго\"","Тюменские РС","Южное ТПО","УФО","АП-ЗС-049/16-КП","2016-10-28",304,"Не определено местными производственными инструкциями по эксплуатации и оперативному обслуживанию оборудования и устройств установленных на данной  подстанции:\n- периодичность и объём осмотра;\n- объём периодического обслуживания (АВР, обогрев и т.д.);\n- возможные неисправности, действия оперативного персонала (ОП) при их возникновении (оперативное устранение, вывод оборудования из работы и т.д.);\n- по СДТУ.","ПТЭ, п.п. 1.7.8, 6.7.2, 6.7.3, 6.11.9 ",10,"С",null,null,"Карпухин В.В."]
["РУТН Западной Сибири","АО \"Тюменьэнерго\"","Тюменские РС","Южное ТПО","УФО","АП-ЗС-049/16-КП","2016-10-28",305,"Не отражено в местных инструкциях по эксплуатации и оперативному обслуживанию устройств РЗА установленных на данной  подстанции:\n- технические данные, режим работы;\n- периодичность и объём осмотра;\n- объём периодического обслуживания (АВР, обогрев и т.д.);\n- возможные неисправности, действия оперативного персонала (ОП) при их возникновении (оперативное устранение, вывод оборудования из работы и т.д.)","СО 34.35.502-2005, п.1.6., ПТЭ, п.5.9.16",10,"С",null,null,"Карпухин В.В."]
["РУТН Западной Сибири","АО \"Тюменьэнерго\"","Тюменские РС","Южное ТПО","УФО","АП-ЗС-049/16-КП","2016-10-28",306,"Не в полном объеме описано в оперативных указаний по РЗА и ПА по объектам (ПС) оперативное обслуживание устройств РЗА (автоматики управления выключателем, АПВ, АВР, оперативная блокировка, ЗДЗ), порядок действия устройств РЗА и ПА на коммутационные аппараты, требований к питанию оперативных цепей защит, технические данные, режим работы; периодичность и объём осмотра; объём периодического обслуживания (АВР, обогрев и т.д.); возможные неисправности, действия оперативного персонала при их возникновении (оперативное устранение, вывод оборудования из работы и т.д.)","СО 34.35.502-2005), п.п.1.6.,\nПТЭ, п.п. 5.9.16, 1.7.8, 6.7.2, 6.7.3, 6.11.9 ",10,"С",null,null,"Карпухин В.В."]
["РУТН Западной Сибири","АО \"Тюменьэнерго\"","Тюменские РС","Южное ТПО","УФО","АП-ЗС-049/16-КП","2016-10-28",307,"Не составляются бланк переключения (типовой бланк) переключений по выводу в ремонт/вводу в работу ЛЭП оперативным персоналом Южного ТПО (на всех уровнях управления) находящихся в диспетчерском управлении ОДС, РДП, смежных предприятий, в соответствии пунктов программы (типовой программы) переключений с необходимой степенью детализации, выполняемых на объекте Южного ТПО (применяются программы ТПП соответствующих управляющих центров ОДС, РДП)","СТО 59012820.29.020.005-2011, п.4.4.8",10,"С",null,null,"Карпухин В.В."]
["РУТН Западной Сибири","АО \"Тюменьэнерго\"","Тюменские РС","Южное ТПО","УФО","АП-ЗС-049/16-КП","2016-10-28",308,"Не выполнен пересмотр перечня переключений на ПС Буньково, Упорово, Шипаково, Ст. Кавдык, Киёво, Петелино не оборудованных блокировочными устройствами или имеющих неисправные блокировочные устройства, переключение должны выполняться по бланкам или типовым бланкам переключения","СТО 59012820.29.020.005-2011, \nп.4.4.1.,\nПриложение 1 \nк распоряжению ОАО «Россети»\nот 17.06.2014 № 250р\nп.1.3",10,"ОРД","Б",null,"Карпухин В.В."]
["РУТН Западной Сибири","АО \"Тюменьэнерго\"","Тюменские РС","Южное ТПО","УФО","АП-ЗС-049/16-КП","2016-10-28",309,"Не в полном объеме выполняются записи по окончанию переключений в оперативном журнале (дежурные ПС на проверенных объектах, диспетчера ОДГ и ОДС) о всех операциях с коммутационными аппаратами, изменениях в цепях РЗА, о включении (отключении) ЗН, наложении (снятии) ПЗ с указанием их номеров и мест нахождения. Также в оперативном журнале не всегда делается запись об изменении первичной схемы электроустановки","СО 153-34.20.505-2003,   п. 2.3.7",10,"С",null,null,"Карпухин В.В."]
["РУТН Западной Сибири","АО \"Тюменьэнерго\"","Тюменские РС","Южное ТПО","УФО","АП-ЗС-049/16-КП","2016-10-28",310,"Не нумеруются выдаваемые оперативному персоналу резервные экземпляры бланков как обычных, так и типовых оперативных переключений. Номера всех выданных оперативному персоналу резервных бланков переключений не фиксируются в оперативном журнале.","СО 153-34.20.505-2003,             п.2.2.9",10,"С",null,"+","Карпухин В.В."]
["РУТН Западной Сибири","АО \"Тюменьэнерго\"","Тюменские РС","Южное ТПО","УФО","АП-ЗС-049/16-КП","2016-10-28",311,"Отсутствуют следующие инструкции:\n- инструкция по эксплуатации оперативной блокировки нового поколения (программная);\n- инструкция по организации работ по обслуживанию УРЗА для оперативного персонала. "," ПТЭ, п.1.7.2.,\nСО 34.35.502-2005, п. 1.4\n",10,"С",null,null,"Карпухин В.В."]
["РУТН Западной Сибири","АО \"Тюменьэнерго\"","Тюменские РС","Южное ТПО","УФО","АП-ЗС-049/16-КП","2016-10-28",312,"Отсутствует ОРД предприятия, утверждающего перечень персонала (оперативно-ремонтный персонал, персонал службы подстанций), который допущен к выполнению регулярных осмотров устройств РЗА, опробования некоторых АВР, опробования действия выключателей от ключа управления и др. \nОтсутствуют специальных инструкций, методики и программами","СО 34.35.502-2005,\n п.2.8",10,"С",null,null,"Ковтун А.Ю."]
["РУТН Западной Сибири","АО \"Тюменьэнерго\"","Тюменские РС","Южное ТПО","УФО","АП-ЗС-049/16-КП","2016-10-28",313,"Отсутствуют, по проверенным ПС,  нормальные схемы СН 0,4 кВ и ЩПТ, схемы питания обогревов оборудования на ОРУ, заводки пружин","ПТЭ, п.п. 1.7.2, 6.6.2",10,"С",null,null,"Карпухин В.В."]
["РУТН Западной Сибири","АО \"Тюменьэнерго\"","Тюменские РС","Южное ТПО","УФО","АП-ЗС-049/16-КП","2016-10-28",314,"Не нанесены все диспетчерские наименования на нормальные схемы проверенных ПС - отсутствуют ПК 10 кВ ТСН, ТТ 35 кВ, не в полном объеме указаны диспетчерские наименования ЗН ВЛ в ячейках 10 кВ КРУН-ЗРУ 10 кВ ","СО 153-34.20.505.2003\nприл. Б, п. 1\n",10,"С",null,null,"Карпухин В.В."]
["РУТН Западной Сибири","АО \"Тюменьэнерго\"","Тюменские РС","Южное ТПО","УФО","АП-ЗС-049/16-КП","2016-10-28",315,"Не выполнен своевременный пересмотр всех нормальных и ремонтных схем ПС (срок 16.07.2016 г.)","ПТЭ, 6.6.4",10,"С",null,"+","Карпухин В.В."]
["РУТН Западной Сибири","АО \"Тюменьэнерго\"","Тюменские РС","Южное ТПО","УФО","АП-ЗС-049/16-КП","2016-10-28",316,"Выявлены недостатки нормальных и ремонтных схем электрических соединений электроустановок, составлены без учета всех конструкций и всего состава оборудования распределительных устройств, особенности устройств РЗА (всех), порядок оперативного обслуживания этих объектов","СО 153-34.20.505-2003,\n п.2.8",10,"С",null,null,"Карпухин В.В."]
["РУТН Западной Сибири","АО \"Тюменьэнерго\"","Тюменские РС","Южное ТПО","УФО","АП-ЗС-049/16-КП","2016-10-28",317,"Не разработаны безлопастные маршруты обхода ПС","ПТЭ, п.5.4.1",8,"С",null,null,"Карпухин В.В."]
["РУТН Западной Сибири","АО \"Тюменьэнерго\"","Тюменские РС","Южное ТПО","УФО","АП-ЗС-049/16-КП","2016-10-28",318,"Отсутствует единообразие при приемке сдачи смены ОВБ - частично отсутствуют записи о состоянии схемы сети, объектов, наличия (отсутствия) работающих бригад, ознакомление с журналом дефектов, количество включенных ЗН и установленных ПЗ (отсутствии), наличие - отсутствие документации и альбомов схем, инструмента и приспособлений, защитных средств","ПТЭ, п.п. 6.7.15, 6.7.16",10,"С",null,null,"Карпухин В.В."]
["РУТН Западной Сибири","АО \"Тюменьэнерго\"","Тюменские РС","Южное ТПО","УФО","АП-ЗС-049/16-КП","2016-10-28",319,"Отсутствуют данные аварийно-допустимых токовых нагрузок на щитовых приборах (Амперметрах) на панелях управления в ОПУ, ЗРУ-КРУН 10 кВ, в том числе цифровых (в виде табличных значений) по всем проверенным ПС","СО 153-34.20.506,\n(ТИ 34-70-025-84),\nп.1.5.3\n",10,null,null,null,"Карпухин В.В."]
["РУТН Западной Сибири","АО \"Тюменьэнерго\"","Тюменские РС","Южное ТПО","УФО","АП-ЗС-049/16-КП","2016-10-28",320,"Не выполняются записи в журнале ввода оборудования при проведении обследовании ТВК оборудования ПС, отсутствуют сведенья в оперативном журнале, журналах учета работ по нарядам и распоряжением на ПС","СО 34.04.181-2003,              п.5.4.3",8,null,null,null,"Ковтун А.Ю."]
["РУТН Западной Сибири","АО \"Тюменьэнерго\"","Тюменские РС","Южное ТПО","УФО","АП-ЗС-049/16-КП","2016-10-28","","Общие замечания. Оперативное обслуживание распределительных электрических сетей 0,38-20 кВ "]
["РУТН Западной Сибири","АО \"Тюменьэнерго\"","Тюменские РС","Южное ТПО","УФО","АП-ЗС-049/16-КП","2016-10-28",321,"Не ведется на рабочих местах диспетчера РЭС отсутствует и следующая оперативная документация:\n- комплексные задания на подготовку рабочего места и допуск бригад к работе;\n- ведомости отказов (аварий) в воздушных распределительных электрических сетях напряжением 6-20 кВ;\n- ведомости нарушений в воздушных электрических сетях напряжением 0,38 кВ;\n- журнал сообщений потребителей о нарушениях электроснабжения","РД 34.20.513 (ТИ 34-70-059-86), п. 3.2",10,"С",null,"+","Карпухин В.В."]
["РУТН Западной Сибири","АО \"Тюменьэнерго\"","Тюменские РС","Южное ТПО","УФО","АП-ЗС-049/16-КП","2016-10-28",322,"Отсутствует на РДП следующая нормативно-техническая и справочно-информационная документация:\n- перечень действующих схем электрических сетей 0,38-20 кВ;\n- перечень сложных переключении, на выполнение которых должны составляться диспетчерские бланки переключении;\n- месячный график отключений оборудования;\n- списки ответственных лиц потребителей, имевших право согласовывать отключения;\n- списки лиц оперативного (оперативно-ремонтного) персонала других предприятий (РЭС), предприятий-владельцев источников питания электросети и потребителей, имеющих право ведения оперативных переговоров;\n- списки лиц потребителей, имеющих право выполнять переключения или работы в электроустановках РЭС;\n- список руководящего административно-технического персонала предприятия с номерами служебных и домашних телефонов.","РД 34.20.513 (ТИ 34-70-059-86), п. 3.4",10,"С",null,null,"Карпухин В.В."]
["РУТН Западной Сибири","АО \"Тюменьэнерго\"","Тюменские РС","Южное ТПО","УФО","АП-ЗС-049/16-КП","2016-10-28",323,"Отсутствует на всех схемах, включая мнемосхему электрической сети 6-20 кВ, таблицы для записей о внесении изменений и сверках схемы, в которой указывается дата внесения изменения и его содержание, должность, фамилия и подпись лица, внесшего изменение, а также ссылка на документ, являющийся основанием для внесения изменения. Либо ведение специальной ведомости или журнала по той же форме для мнемосхемы электрической сети 6-20 кВ ","РД 34.20.513 (ТИ 34-70-059-86), п. 5.2",10,"С",null,"+","Карпухин В.В."]
["РУТН Западной Сибири","АО \"Тюменьэнерго\"","Тюменские РС","Южное ТПО","УФО","АП-ЗС-049/16-КП","2016-10-28",324,"Отсутствует ОРД о назначение лиц каждому подразделению и предприятию в целом, ответственных за своевременное внесение изменений в находящиеся в этих подразделениях экземпляры схем (например, начальник службы распредсетей (производственно-технической службы) или начальник оперативно-диспетчерской службы) ","РД 34.20.513 (ТИ 34-70-059-86), п .5.4",10,null,null,"+","Карпухин В.В."]
["РУТН Западной Сибири","АО \"Тюменьэнерго\"","Тюменские РС","Южное ТПО","УФО","АП-ЗС-049/16-КП","2016-10-28",325,"Отсутствует в местной инструкции указаний по режиму электрической сети 6-20 кВ, в которой  приводятся:\n- описание ремонтных режимов электросети 6-20 кВ – с определением возможности и порядка, перевода всей или части нагрузок с одной линии 6-20 кВ на другую и указанием изменения в настройке устройств релейной защиты и автоматики, которые для такого перевода нагрузок необходимо выполнить.","РД 34.20.513 (ТИ 34-70-059-86), п.п. 4.1, 4.3",10,null,null,null,"Карпухин В.В."]
["РУТН Западной Сибири","АО \"Тюменьэнерго\"","Тюменские РС","Южное ТПО","УФО","АП-ЗС-049/16-КП","2016-10-28",326,"Отсутствует перечень видов переключений, выполняемых по обычным бланкам переключений, по типовым бланкам переключений и программам, а также перечень видов переключений, выполнение которых допускается без бланков переключений, с указание в каждом перечне числа лиц оперативного персонала, участвующих в тех или иных переключениях в электроустановках распределительных сетей 0,4-10 кВ"," СО 153-34.20.505-2003,\nп.2.2.2",10,"С",null,null,"Карпухин В.В."]
["РУТН Западной Сибири","АО \"Тюменьэнерго\"","Тюменские РС","Южное ТПО","УФО","АП-ЗС-049/16-КП","2016-10-28",327,"Отсутствует у диспетчера РДП утвержденного месячного графика плановых отключений электроустановок, составленного на основе годового графика отключений"," РД 34.20.513 (ТИ 34-70-059-86), п.п. 9.1, 9.2.,\nПТЭ, п. 1.6.9",10,"С",null,"+","Карпухин В.В."]